Workbook

Sheet BuffConfig
A1: ID | D1: Rare | E1: opposite | F1: icon | G1: buffName | H1: buffEffectDes | I1: buffGroup | J1: overlayCount | K1: effectValue | L1: graduallyDecrease | M1: Power | N1: timeType | O1: effectIndex | P1: buffTime | Q1: buffType | R1: attentionType | S1: dispelType | T1: IsControlBuff | U1: IsStopSmallSkill | V1: IsHideIcon | W1: EnableType | X1: isTeam | Y1: abyssBuffType | Z1: scriptsName
A2: int | D2: int | E2: int | F2: string | G2: int | H2: int | I2: int | J2: int | K2: float[] | L2: int | M2: int | N2: int | O2: int[] | P2: float | Q2: int | R2: int | S2: int | T2: int | U2: int | V2: int | W2: int | X2: int | Y2: int | Z2: string
A4: ID （id段不再区分debuff和buff） | D4: 稀有度 1=初级 2=中级 3=高级 4=传奇 | E4: 对立组 | F4: 图标 | G4: buff名称 | H4: buff描述 | I4: buff组 详细见buff组说明 | J4: 叠加个数（超过后不在有新效果） | K4: 效果值 | L4: 衰弱% | M4: 提升战力（百分比） | N4: 计时类型 1.统一计时 2.独自计时 | O4: 受衰弱影响的下标 0=第一个 | P4: 默认持续时间 -1是永久（技能里可以修改这个值） | Q4: 1=buff 2=debuff 3=中立 | R4: 0.普通buff 1.进阶buff | S4: 驱散类型 1=能驱散 2=不能驱散 | T4: 是否是控制buff 1=是 0=不是 | U4: 是否暂停小技能计时 1=是 0=不是 | V4: 是否隐藏图标 1=是 0=不是 | W4: 0=无激活条件 1=火属性 2=冰属性 3=雷属性 | X4: 0=作用自己 1=作用于所有英雄 2=作用于所有敌人 3=作用于所有英雄和敌人 | Y4: 1.课题机制 2.深渊 3.火 4.冰 5.雷 6.初始课题 7.冒险 8.debuff 9.拟态科技 | Z4: 脚本名字 | AA4: 5层值 | AD4: 0.8
A5: =I5*100+1 -> 100101 | B5: 弱化 | C5: 秒伤降低{0}% | E5: 1 | F5: icon_buff1 | G5: 500003 | H5: 500044 | I5: 1001 | J5: 5 | K5: 15 | L5: 20 | M5: 0 | N5: 2 | O5: 0 | P5: 9 | Q5: 2 | R5: 0 | S5: 1 | T5: 0 | U5: 0 | V5: 0 | W5: 0 | X5: 0 | Y5: 0 | Z5: ="b"&I5 -> b1001 | AA5: 50 | AB5: 0 | AC5: 15 | AD5: =AD$4^AB5 -> 1 | AE5: =AC5*AD5 -> 15 | AF5: =SUM(AE$5:AE5) -> 15 | AI5: 150 | AJ5: 250
A6: 100201 | B6: 虚弱 | C6: 最终伤害降低{0}% | E6: 2 | F6: icon_buff2 | G6: 500004 | H6: 500045 | I6: 1002 | J6: 5 | K6: 15 | L6: 20 | M6: 0 | N6: 2 | O6: 0 | P6: 9 | Q6: 2 | R6: 0 | S6: 1 | T6: 0 | U6: 0 | V6: 0 | W6: 0 | X6: 0 | Y6: 0 | Z6: b1002 | AA6: 50 | AB6: 1 | AC6: =AC5 -> 15 | AD6: =AD$4^AB6 -> 0.8 | AE6: =AC6*AD6 -> 12 | AF6: =SUM(AE$5:AE6) -> 27 | AI6: 150 | AJ6: 100
A7: 100301 | B7: 破甲 | C7: 防御力降低{0}% | E7: 3 | F7: icon_buff3 | G7: 500005 | H7: 500046 | I7: 1003 | J7: 5 | K7: 22 | L7: 20 | M7: 0 | N7: 2 | O7: 0 | P7: 9 | Q7: 2 | R7: 0 | S7: 1 | T7: 0 | U7: 0 | V7: 0 | W7: 0 | X7: 0 | Y7: 0 | Z7: b1003 | AA7: 44.5 | AB7: 2 | AC7: =AC6 -> 15 | AD7: 0.64 | AE7: 9.6 | AF7: =SUM(AE$5:AE7) -> 36.6 | AI7: 150 | AJ7: 100
A8: 100401 | B8: 易伤 | C8: 受到伤害增加{0}% | E8: 4 | F8: icon_buff4 | G8: 500006 | H8: 500047 | I8: 1004 | J8: 5 | K8: 15 | L8: 20 | M8: 0 | N8: 2 | O8: 0 | P8: 9 | Q8: 2 | R8: 0 | S8: 1 | T8: 0 | U8: 0 | V8: 0 | W8: 0 | X8: 0 | Y8: 0 | Z8: b1004 | AA8: 50 | AB8: 3 | AC8: 15 | AD8: 0.512 | AE8: 7.68 | AF8: =SUM(AE$5:AE8) -> 44.28
A9: 100501 | B9: 禁疗 | C9: 降低{0}%受治疗效果 | E9: 5 | F9: icon_buff5 | G9: 500007 | H9: 500048 | I9: 1005 | J9: 5 | K9: 30 | L9: 20 | M9: 0 | N9: 2 | O9: 0 | P9: 9 | Q9: 2 | R9: 0 | S9: 1 | T9: 0 | U9: 0 | V9: 0 | W9: 0 | X9: 0 | Y9: 0 | Z9: b1005 | AA9: 99 | AB9: 4 | AC9: 15 | AD9: 0.4096 | AE9: 6.144 | AF9: =SUM(AE$5:AE9) -> 50.424
A10: 100601 | B10: 寒冰 | C10: 移动速度降低{0}%，并限制其最高移动速度 | E10: -1 | F10: icon_buff6 | G10: 500008 | H10: 500049 | I10: 1006 | J10: 1 | K10: 25;1 | L10: 0 | M10: 0 | N10: 1 | O10: 0 | P10: 9 | Q10: 2 | R10: 0 | S10: 1 | T10: 0 | U10: 0 | V10: 0 | W10: 0 | X10: 0 | Y10: 0 | Z10: b1006 | AB10: 5 | AC10: 15 | AD10: 0.32768 | AE10: 4.9152 | AF10: =SUM(AE$5:AE10) -> 55.3392
A11: 100701 | B11: 冻伤 | C11: 护盾额外受到{0}%伤害 | E11: -1 | F11: icon_buff7 | G11: 500009 | H11: 500050 | I11: 1007 | J11: 1 | K11: 100 | L11: 0 | M11: 0 | N11: 1 | O11: 0 | P11: 9 | Q11: 2 | R11: 0 | S11: 1 | T11: 0 | U11: 0 | V11: 0 | W11: 0 | X11: 0 | Y11: 0 | Z11: b1007 | AB11: 6 | AC11: 15 | AD11: =AD$4^AB11 -> 0.262144 | AE11: =AC11*AD11 -> 3.93216 | AF11: =SUM(AE$5:AE11) -> 59.27136
A12: 100801 | B12: 感电 | C12: 攻速提升{0}% | E12: -1 | F12: icon_buff8 | G12: 500010 | H12: 500051 | I12: 1008 | J12: 10 | K12: 3 | L12: 0 | M12: 0 | N12: 1 | O12: 0 | P12: -1 | Q12: 1 | R12: 0 | S12: 1 | T12: 0 | U12: 0 | V12: 0 | W12: 0 | X12: 0 | Y12: 0 | Z12: b1008 | AB12: 7 | AC12: =AC11 -> 15 | AD12: 0.2097152 | AE12: 3.145728 | AF12: =SUM(AE$5:AE12) -> 62.417088
A13: 100901 | B13: 过载 | C13: 伤害降低{0}%，期间无法获得“感电”。过载基础持续时间为2秒，每消耗{1}层“感电”，额外增加{2}秒。 | E13: -1 | F13: icon_buff9 | G13: 500011 | H13: 500052 | I13: 1009 | J13: 1 | K13: 25;1;0.1 | M13: 0 | O13: 0 | P13: 2 | Q13: 2 | R13: 1 | S13: 1 | T13: 0 | U13: 0 | V13: 0 | W13: 0 | X13: 0 | Y13: 0 | Z13: b1009 | AB13: 8 | AC13: 15 | AD13: 0.16777216 | AE13: 2.5165824 | AF13: =SUM(AE$5:AE13) -> 64.9336704
A14: 101001 | B14: 致盲 | C14: 命中降低{0}% | E14: -1 | F14: icon_buff10 | G14: 500012 | H14: 500053 | I14: 1010 | J14: 5 | K14: 30 | L14: 20 | M14: 0 | N14: 2 | O14: 0 | P14: 9 | Q14: 2 | R14: 0 | S14: 1 | T14: 0 | U14: 0 | V14: 0 | W14: 0 | X14: 0 | Y14: 0 | Z14: b1010 | AA14: 99 | AB14: 9 | AC14: 15 | AD14: 0.134217728 | AE14: 2.01326592 | AF14: =SUM(AE$5:AE14) -> 66.94693632
A15: 101101 | B15: 迟疑 | C15: 攻速降低{0}% | E15: -1 | F15: icon_buff11 | G15: 500013 | H15: 500054 | I15: 1011 | J15: 5 | K15: 15 | L15: 20 | M15: 0 | N15: 2 | O15: 0 | P15: 9 | Q15: 2 | R15: 0 | S15: 1 | T15: 0 | U15: 0 | V15: 0 | W15: 0 | X15: 0 | Y15: 0 | Z15: b1011 | AA15: 50
A16: 101201 | B16: 焦躁 | C16: 暴击率下降{0}% | E16: -1 | F16: icon_buff12 | G16: 500014 | H16: 500055 | I16: 1012 | J16: 5 | K16: 20 | L16: 0 | M16: 0 | N16: 2 | O16: 0 | P16: 9 | Q16: 2 | R16: 0 | S16: 1 | T16: 0 | U16: 0 | V16: 0 | W16: 0 | X16: 0 | Y16: 0 | Z16: b1012 | AA16: 100
A17: 101301 | B17: 超重 | C17: {0}层后打断堆叠状态，并无法进行堆叠 | E17: -1 | F17: icon_buff13 | G17: 500015 | H17: 500056 | I17: 1013 | J17: 3 | K17: 3 | L17: 0 | M17: 0 | N17: 1 | O17: 0 | P17: 9 | Q17: 2 | R17: 0 | S17: 1 | T17: 0 | U17: 0 | V17: 0 | W17: 0 | X17: 0 | Y17: 0 | Z17: b1013
A18: 101401 | B18: 沉默 | C18: 无法使用终极技能 | E18: -1 | F18: icon_buff14 | G18: 500016 | H18: 500057 | I18: 1014 | J18: 1 | K18: -1 | L18: 0 | M18: 0 | N18: 1 | O18: 0 | P18: 9 | Q18: 2 | R18: 0 | S18: 1 | T18: 0 | U18: 0 | V18: 0 | W18: 0 | X18: 0 | Y18: 0 | Z18: b1014
A19: 101501 | B19: 减速 | C19: 移动速度减少{0}% | E19: -1 | F19: icon_buff15 | G19: 500017 | H19: 500058 | I19: 1015 | J19: 5 | K19: 12 | L19: 0 | M19: 0 | N19: 2 | O19: 0 | P19: 9 | Q19: 2 | R19: 0 | S19: 1 | T19: 0 | U19: 0 | V19: 0 | W19: 0 | X19: 0 | Y19: 0 | Z19: b1015 | AA19: 100
A20: 101601 | B20: 标记 | C20: 闪避率降低{0}% | E20: -1 | F20: icon_buff16 | G20: 500018 | H20: 500059 | I20: 1016 | J20: 5 | K20: 20 | L20: 0 | M20: 0 | N20: 2 | O20: 0 | P20: 9 | Q20: 2 | R20: 0 | S20: 1 | T20: 0 | U20: 0 | V20: 0 | W20: 0 | X20: 0 | Y20: 0 | Z20: b1016 | AA20: 100
A21: 101701 | B21: 燃烧 | C21: 每秒损失基于施法者{0}%秒伤的生命 | E21: -1 | F21: icon_buff17 | G21: 500019 | H21: 500060 | I21: 1017 | J21: 1 | K21: 75 | L21: 0 | M21: 0 | N21: 1 | O21: 0 | P21: 9 | Q21: 2 | R21: 0 | S21: 1 | T21: 0 | U21: 0 | V21: 0 | W21: 0 | X21: 0 | Y21: 0 | Z21: b1017
A22: 102201 | B22: 爆裂 | C22: 受到的首段技能伤害增加{0}%，并形成一次原伤害{1}%伤害的范围爆炸 | E22: -1 | F22: icon_buff18 | G22: 500020 | H22: 500061 | I22: 1022 | J22: 1 | K22: 20;100;3 | L22: 0 | M22: 0 | N22: 1 | O22: 0 | P22: 9 | Q22: 2 | R22: 1 | S22: 1 | T22: 0 | U22: 0 | V22: 0 | W22: 0 | X22: 0 | Y22: 0 | Z22: b1022
A23: 101901 | B23: 眩晕(深红) | C23: 无法移动，无法攻击，无法释放技能 | E23: -1 | F23: icon_buff19 | G23: 500021 | H23: 500062 | I23: 1019 | J23: 1 | K23: -1 | L23: 0 | M23: 0 | N23: 1 | O23: 0 | P23: 3 | Q23: 2 | R23: 1 | S23: 1 | T23: 1 | U23: 1 | V23: 0 | W23: 0 | X23: 0 | Y23: 0 | Z23: b1019
A24: 102001 | B24: 禁锢 | C24: 无法移动 | E24: -1 | F24: icon_buff20 | G24: 500022 | H24: 500063 | I24: 1020 | J24: 1 | K24: -1 | L24: 0 | M24: 0 | N24: 1 | O24: 0 | P24: 9 | Q24: 2 | R24: 0 | S24: 1 | T24: 1 | U24: 0 | V24: 0 | W24: 0 | X24: 0 | Y24: 0 | Z24: b1020
A25: 102101 | B25: 充能禁止 | C25: 期间终极技能无法充能 | E25: -1 | F25: icon_buff21 | G25: 500023 | H25: 500064 | I25: 1021 | J25: 1 | K25: -1 | L25: 0 | M25: 0 | N25: 1 | O25: 0 | P25: 9 | Q25: 2 | R25: 0 | S25: 1 | T25: 0 | U25: 0 | V25: 0 | W25: 0 | X25: 0 | Y25: 0 | Z25: b1021
A26: 102301 | B26: 压制（深红） | C26: 不能进行任何行动 | E26: -1 | F26: icon_buff45 | G26: 501268 | H26: 501269 | I26: 1023 | J26: 1 | K26: -1 | L26: 0 | M26: 0 | N26: 1 | O26: 0 | P26: 9 | Q26: 2 | R26: 1 | S26: 2 | T26: 1 | U26: 1 | V26: 0 | W26: 0 | X26: 0 | Y26: 0 | Z26: b1023
A27: =I27*100+1 -> 102401 | B27: 毒素 | C27: 每秒受到最大生命{0}%的真实伤害 | E27: -1 | F27: icon_buff48 | G27: 501293 | H27: 501294 | I27: 1024 | J27: 10 | K27: 0.1 | L27: -50 | M27: 0 | N27: 1 | O27: 0 | P27: 9 | Q27: 2 | R27: 0 | S27: 1 | T27: 0 | U27: 0 | V27: 0 | W27: 0 | X27: 0 | Y27: 0 | Z27: ="b"&I27 -> b1024
A28: =I28*100+1 -> 102501 | B28: 麻痹 | C28: 降低{0}%动作速率 | E28: -1 | F28: icon_buff49 | G28: 501295 | H28: 501296 | I28: 1025 | J28: 10 | K28: 1.3 | L28: -15 | M28: 0 | N28: 1 | O28: 0 | P28: 3 | Q28: 2 | R28: 1 | S28: 1 | T28: 0 | U28: 0 | V28: 0 | W28: 0 | X28: 0 | Y28: 0 | Z28: b1025
A29: 102601 | B29: 牵引 | C29: 向前方移动{0}米，移动速度降低{1}% | E29: -1 | G29: 501295 | H29: 501296 | I29: 1026 | J29: 1 | K29: 3.5;50 | L29: 0 | M29: 0 | N29: 1 | O29: 0 | P29: 3 | Q29: 2 | R29: 0 | S29: 1 | T29: 1 | U29: 0 | V29: 1 | W29: 0 | X29: 0 | Y29: 0 | Z29: b1026
A30: =I30*100+1 -> 200101 | B30: 强力 | C30: 秒伤增加{0}% | E30: 1 | F30: icon_buff22 | G30: 500024 | H30: 500065 | I30: 2001 | J30: 5 | K30: 15 | L30: 20 | M30: 0 | N30: 2 | O30: 0 | P30: 9 | Q30: 1 | R30: 0 | S30: 1 | T30: 0 | U30: 0 | V30: 0 | W30: 0 | X30: 0 | Y30: 0 | Z30: ="b"&I30 -> b2001 | AA30: 50
A31: 200201 | B31: 增伤 | C31: 最终伤害增加{0}% | E31: 2 | F31: icon_buff23 | G31: 500025 | H31: 500066 | I31: 2002 | J31: 5 | K31: 15 | L31: 20 | M31: 0 | N31: 2 | O31: 0 | P31: 9 | Q31: 1 | R31: 0 | S31: 1 | T31: 0 | U31: 0 | V31: 0 | W31: 0 | X31: 0 | Y31: 0 | Z31: b2002 | AA31: 50
A32: 200301 | B32: 防御强化 | C32: 防御力增加{0}% | E32: 3 | F32: icon_buff24 | G32: 500026 | H32: 500067 | I32: 2003 | J32: 5 | K32: 30 | L32: 20 | M32: 0 | N32: 2 | O32: 0 | P32: 9 | Q32: 1 | R32: 0 | S32: 1 | T32: 0 | U32: 0 | V32: 0 | W32: 0 | X32: 0 | Y32: 0 | Z32: b2003 | AA32: 135
A33: 200401 | B33: 免伤 | C33: 受到伤害减少{0}% | E33: 4 | F33: icon_buff25 | G33: 500027 | H33: 500068 | I33: 2004 | J33: 5 | K33: 15 | L33: 20 | M33: 0 | N33: 2 | O33: 0 | P33: 9 | Q33: 1 | R33: 0 | S33: 1 | T33: 0 | U33: 0 | V33: 0 | W33: 0 | X33: 0 | Y33: 0 | Z33: b2004 | AA33: 50
A34: 200501 | B34: 生命免伤 | C34: 生命受到伤害减少{0}% | E34: -1 | F34: icon_buff26 | G34: 500028 | H34: 500069 | I34: 2005 | J34: 1 | K34: 25 | M34: 0 | O34: 0 | P34: 8 | Q34: 1 | R34: 0 | S34: 1 | T34: 0 | U34: 0 | V34: 0 | W34: 0 | X34: 0 | Y34: 0 | Z34: b2005
A35: 200601 | B35: 护盾免伤 | C35: 护盾受到伤害减少{0}% | E35: -1 | F35: icon_buff27 | G35: 500029 | H35: 500070 | I35: 2006 | J35: 1 | K35: 25 | M35: 0 | O35: 0 | P35: 8 | Q35: 1 | R35: 0 | S35: 1 | T35: 0 | U35: 0 | V35: 0 | W35: 0 | X35: 0 | Y35: 0 | Z35: b2006
A36: 200701 | B36: 祝福 | C36: 受治疗效果增加{0}%受治疗效果 | E36: 5 | F36: icon_buff28 | G36: 500030 | H36: 500071 | I36: 2007 | J36: 5 | K36: 20 | L36: 0 | M36: 0 | N36: 2 | O36: 0 | P36: 9 | Q36: 1 | R36: 0 | S36: 1 | T36: 0 | U36: 0 | V36: 0 | W36: 0 | X36: 0 | Y36: 0 | Z36: b2007 | AA36: 100
A37: 200801 | B37: 无敌 | C37: 免疫控制，免疫伤害 | E37: -1 | F37: icon_buff29 | G37: 500031 | H37: 500072 | I37: 2008 | J37: 1 | K37: -1 | L37: 0 | M37: 0 | N37: 1 | O37: 0 | P37: 6 | Q37: 1 | R37: 0 | S37: 1 | T37: 0 | U37: 0 | V37: 0 | W37: 0 | X37: 0 | Y37: 0 | Z37: b2008
A38: 200901 | B38: 霸体 | C38: 期间免疫控制，免疫debuff | E38: -1 | F38: icon_buff30 | G38: 500032 | H38: 500073 | I38: 2009 | J38: 1 | K38: -1 | L38: 0 | M38: 0 | N38: 1 | O38: 0 | P38: 9 | Q38: 1 | R38: 0 | S38: 2 | T38: 0 | U38: 0 | V38: 0 | W38: 0 | X38: 0 | Y38: 0 | Z38: b2009
A39: 201001 | B39: 狂暴 | C39: 攻速增加{0}% | E39: -1 | F39: icon_buff31 | G39: 500033 | H39: 500074 | I39: 2010 | J39: 5 | K39: 20 | L39: 0 | M39: 0 | N39: 2 | O39: 0 | P39: 9 | Q39: 1 | R39: 0 | S39: 1 | T39: 0 | U39: 0 | V39: 0 | W39: 0 | X39: 0 | Y39: 0 | Z39: b2010 | AA39: 200
A40: 201101 | B40: 近战狂暴 | C40: 每层增加{0}%近战攻速 | E40: -1 | F40: icon_buff32 | G40: 500034 | H40: 500075 | I40: 2011 | J40: 5 | K40: 10 | M40: 0 | O40: 0 | P40: 9 | Q40: 1 | R40: 0 | S40: 1 | T40: 0 | U40: 0 | V40: 0 | W40: 0 | X40: 0 | Y40: 0 | Z40: b2011
A41: 201201 | B41: 暴击 | C41: 暴击率提升{0}% | E41: -1 | F41: icon_buff33 | G41: 500035 | H41: 500076 | I41: 2012 | J41: 5 | K41: 10 | L41: 0 | M41: 0 | N41: 2 | O41: 0 | P41: 9 | Q41: 1 | R41: 0 | S41: 1 | T41: 0 | U41: 0 | V41: 0 | W41: 0 | X41: 0 | Y41: 0 | Z41: b2012 | AA41: 100
A42: 201301 | B42: 失去理智（被嘲讽 | C42: 被敌人优先攻击 | E42: -1 | F42: icon_buff34 | G42: 500036 | H42: 500077 | I42: 2013 | J42: 1 | K42: -1 | L42: 0 | M42: 0 | N42: 1 | O42: 0 | P42: 9 | Q42: 2 | R42: 0 | S42: 1 | T42: 0 | U42: 0 | V42: 0 | W42: 0 | X42: 0 | Y42: 0 | Z42: b2013
A43: 201401 | B43: 闪避 | C43: 闪避提升{0}% | E43: -1 | F43: icon_buff35 | G43: 500037 | H43: 500078 | I43: 2014 | J43: 5 | K43: 30 | L43: 20 | M43: 0 | N43: 2 | O43: 0 | P43: 9 | Q43: 1 | R43: 0 | S43: 1 | T43: 0 | U43: 0 | V43: 0 | W43: 0 | X43: 0 | Y43: 0 | Z43: b2014 | AA43: 99
A44: 201501 | B44: 吸血 | C44: 吸血提升{0}% | E44: -1 | F44: icon_buff36 | G44: 500038 | H44: 500079 | I44: 2015 | J44: 5 | K44: 10 | L44: 0 | M44: 0 | N44: 2 | O44: 0 | P44: 9 | Q44: 1 | R44: 0 | S44: 1 | T44: 0 | U44: 0 | V44: 0 | W44: 0 | X44: 0 | Y44: 0 | Z44: b2015 | AA44: 100
A45: 201601 | B45: 生命恢复 | C45: 每秒生命恢复{0}%x层数（最高限制为施加者秒伤的{1}%） | E45: -1 | F45: icon_buff37 | G45: 500039 | H45: 500080 | I45: 2016 | J45: 5 | K45: 1;500 | M45: 0 | O45: 0 | P45: 9 | Q45: 1 | R45: 0 | S45: 1 | T45: 0 | U45: 0 | V45: 0 | W45: 0 | X45: 0 | Y45: 0 | Z45: b2016
A46: 201701 | B46: 护盾充能 | C46: 每秒护盾恢复{0}%x层数（最高限制为施加者秒伤的{1}%） | E46: -1 | F46: icon_buff38 | G46: 500040 | H46: 500081 | I46: 2017 | J46: 5 | K46: 2;500 | M46: 0 | O46: 0 | P46: 9 | Q46: 1 | R46: 0 | S46: 1 | T46: 0 | U46: 0 | V46: 0 | W46: 0 | X46: 0 | Y46: 0 | Z46: b2017
A47: 201801 | B47: 不能被选取 | C47: 无法成为敌人攻击和技能的目标 | E47: -1 | G47: 500041 | H47: 500082 | I47: 2018 | J47: 1 | K47: -1 | L47: 0 | M47: 0 | N47: 1 | O47: 0 | P47: 9 | Q47: 1 | R47: 0 | S47: 1 | T47: 0 | U47: 0 | V47: 1 | W47: 0 | X47: 0 | Y47: 0 | Z47: b2018
A48: 201901 | B48: 连击 | C48: 下一次释放小技能时，{0}%x层数的几率再释放一次 | E48: -1 | F48: icon_buff40 | G48: 500042 | H48: 500083 | I48: 2019 | J48: 10 | K48: 10 | M48: 0 | O48: 0 | P48: 8 | Q48: 1 | R48: 0 | S48: 1 | T48: 0 | U48: 0 | V48: 0 | W48: 0 | X48: 0 | Y48: 0 | Z48: b2019
A49: 202001 | B49: 免控 | C49: 期间免疫控制 | E49: -1 | F49: icon_buff41 | G49: 500043 | H49: 500084 | I49: 2020 | J49: 1 | K49: -1 | L49: 0 | M49: 0 | N49: 1 | O49: 0 | P49: 9 | Q49: 1 | R49: 0 | S49: 1 | T49: 0 | U49: 0 | V49: 1 | W49: 0 | X49: 0 | Y49: 0 | Z49: b2020
A50: 202101 | B50: 冻结 | C50: 护盾无效化且受到的最终伤害增加{0}%，非首领敌人{1}s内无法行动 | E50: -1 | F50: icon_buff7 | G50: 501270 | H50: 501276 | I50: 2021 | J50: 1 | K50: 25;5 | L50: 0 | M50: 0 | N50: 1 | O50: 0 | P50: 6 | Q50: 2 | R50: 0 | S50: 1 | T50: 1 | U50: 0 | V50: 0 | W50: 0 | X50: 0 | Y50: 0 | Z50: b2021
A51: 202201 | B51: 焚烧（深红） | C51: 受到技能的每段伤害时，追加一次基于施法者{0}%秒伤的额外伤害 | E51: -1 | F51: icon_buff43 | G51: 501271 | H51: 501277 | I51: 2022 | J51: 1 | K51: 75 | L51: 0 | M51: 0 | N51: 1 | O51: 0 | P51: 12 | Q51: 2 | R51: 1 | S51: 1 | T51: 0 | U51: 0 | V51: 0 | W51: 0 | X51: 0 | Y51: 0 | Z51: b2022
A52: 202301 | B52: 加速 | C52: 移动速度提升{0}% | E52: -1 | F52: icon_buff44 | G52: 501272 | H52: 501278 | I52: 2023 | J52: 5 | K52: 20 | L52: 0 | M52: 0 | N52: 2 | O52: 0 | P52: 9 | Q52: 1 | R52: 0 | S52: 1 | T52: 0 | U52: 0 | V52: 0 | W52: 0 | X52: 0 | Y52: 0 | Z52: b2023 | AA52: 100
A53: 202401 | B53: 冰甲 | C53: 额外{0}%概率免疫减益效果 | E53: -1 | F53: icon_buff47 | G53: 501273 | H53: 501279 | I53: 2024 | J53: 1 | K53: 30 | L53: 0 | M53: 0 | N53: 2 | O53: 0 | P53: 9 | Q53: 1 | R53: 0 | S53: 1 | T53: 0 | U53: 0 | V53: 0 | W53: 0 | X53: 0 | Y53: 0 | Z53: b2024
A54: 202501 | B54: 标记（紫色） | C54: boss90300的标记buff，受到的伤害+{0}%，同时其他队友也将受到一定比例的伤害 | E54: -1 | F54: icon_buff46 | G54: 501274 | H54: 501280 | I54: 2025 | J54: 1 | K54: 50 | L54: 0 | M54: 0 | N54: 2 | O54: 0 | P54: 9 | Q54: 3 | R54: 0 | S54: 2 | T54: 0 | U54: 0 | V54: 0 | W54: 0 | X54: 0 | Y54: 0 | Z54: b2025
A55: 202601 | B55: 免疫位移 | C55: 免疫所有负面位移 | E55: -1 | G55: 501275 | H55: 501281 | I55: 2026 | J55: 1 | K55: 0 | L55: 0 | M55: 0 | N55: 2 | O55: 0 | P55: 9 | Q55: 1 | R55: 0 | S55: 2 | T55: 0 | U55: 0 | V55: 1 | W55: 0 | X55: 0 | Y55: 0 | Z55: b2026
A56: =I56*100+1 -> 202701 | B56: 不死 | C56: 免疫死亡 | E56: -1 | F56: icon_buff50 | G56: 501297 | H56: 501298 | I56: 2027 | J56: 1 | K56: 0 | L56: 0 | M56: 0 | N56: 2 | O56: 0 | P56: 9 | Q56: 1 | R56: 0 | S56: 1 | T56: 0 | U56: 0 | V56: 0 | W56: 0 | X56: 0 | Y56: 0 | Z56: ="b"&I56 -> b2027
A57: 202901 | C57: x层以后冻结 | E57: -1 | G57: 0 | H57: 0 | I57: 2029 | J57: 999 | K57: -1 | L57: 0 | M57: 0 | N57: 1 | O57: 0 | P57: 5 | Q57: 2 | R57: 0 | S57: 1 | T57: 0 | U57: 0 | V57: 1 | W57: 0 | X57: 0 | Y57: 0 | Z57: b2029
A58: 203000 | B58: 开局受伤 | C58: 战斗开始时，全队英雄受到{0}%最大生命的伤害 | E58: -1 | G58: 0 | H58: 0 | I58: 2052 | J58: 1 | K58: 15 | L58: 0 | M58: 0 | N58: 1 | O58: 0 | P58: -1 | Q58: 1 | R58: 0 | S58: 2 | T58: 0 | U58: 0 | V58: 1 | W58: 0 | X58: 1 | Y58: 0 | Z58: ="gb"&I58 -> gb2052
A59: 203001 | C59: 全体英雄攻速提升{0}% | E59: -1 | G59: 501224 | H59: 501231 | I59: 2030 | J59: 1 | K59: 100 | L59: 0 | M59: 0 | N59: 1 | O59: 0 | P59: -1 | Q59: 1 | R59: 0 | S59: 2 | T59: 0 | U59: 0 | V59: 1 | W59: 0 | X59: 1 | Y59: 0 | Z59: b2030
A60: 203101 | B60: 甘泉圣杯 | C60: 战斗开始时，全队获得满能量，神器也处于预备状态 | E60: -1 | F60: icon_globalbuff4 | G60: 501225 | H60: 501232 | I60: 2031 | J60: 1 | K60: -1 | L60: 0 | M60: 0 | N60: 1 | O60: 0 | P60: -1 | Q60: 1 | R60: 0 | S60: 2 | T60: 0 | U60: 0 | V60: 0 | W60: 0 | X60: 1 | Y60: 0 | Z60: ="gb"&I60 -> gb2031
A61: 203201 | C61: 全体英雄暴击伤害提升{0}% | E61: -1 | G61: 501226 | H61: 501233 | I61: 2032 | J61: 1 | K61: 100 | L61: 0 | M61: 0 | N61: 1 | O61: 0 | P61: -1 | Q61: 1 | R61: 0 | S61: 2 | T61: 0 | U61: 0 | V61: 1 | W61: 0 | X61: 1 | Y61: 0 | Z61: ="b"&I61 -> b2032
A62: 203301 | C62: 火属性角色秒伤提升{0}%，最大生命提升{1}% | E62: -1 | G62: 501227 | H62: 501234 | I62: 2033 | J62: 1 | K62: 50;30 | L62: 0 | M62: 0 | N62: 1 | O62: 0 | P62: -1 | Q62: 1 | R62: 0 | S62: 2 | T62: 0 | U62: 0 | V62: 1 | W62: 1 | X62: 1 | Y62: 0 | Z62: b2033
A63: 203401 | C63: 冰属性角色秒伤提升{0}%，最大生命提升{1}% | E63: -1 | G63: 501228 | H63: 501235 | I63: 2034 | J63: 1 | K63: 50;30 | L63: 0 | M63: 0 | N63: 1 | O63: 0 | P63: -1 | Q63: 1 | R63: 0 | S63: 2 | T63: 0 | U63: 0 | V63: 1 | W63: 2 | X63: 1 | Y63: 0 | Z63: b2034
A64: 203501 | C64: 雷属性角色秒伤提升{0}%，最大生命提升{1}% | E64: -1 | G64: 501229 | H64: 501236 | I64: 2035 | J64: 1 | K64: 50;30 | L64: 0 | M64: 0 | N64: 1 | O64: 0 | P64: -1 | Q64: 1 | R64: 0 | S64: 2 | T64: 0 | U64: 0 | V64: 1 | W64: 3 | X64: 1 | Y64: 0 | Z64: b2035
A65: 203601 | C65: 所有角色秒伤提升{0}%，最大生命提升{1}% | E65: -1 | F65: icon_globalbuff9 | G65: 501230 | H65: 501237 | I65: 2036 | J65: 1 | K65: 30;20 | L65: 0 | M65: 0 | N65: 1 | O65: 0 | P65: -1 | Q65: 1 | R65: 0 | S65: 2 | T65: 0 | U65: 0 | V65: 1 | W65: 0 | X65: 1 | Y65: 0 | Z65: b2036
A66: 203701 | C66: 对燃烧中的敌人每次造成伤害时获得{0}点能量 | E66: -1 | G66: 501238 | H66: 501241 | I66: 2037 | J66: 1 | K66: 1 | L66: 0 | M66: 0 | N66: 1 | O66: 0 | P66: -1 | Q66: 1 | R66: 0 | S66: 2 | T66: 0 | U66: 0 | V66: 1 | W66: 0 | X66: 1 | Y66: 0 | Z66: b2037
A67: 203801 | C67: 攻击寒冰中的敌人额外增加{0}%暴击率 | E67: -1 | G67: 501239 | H67: 501242 | I67: 2038 | J67: 1 | K67: 30 | L67: 0 | M67: 0 | N67: 1 | O67: 0 | P67: -1 | Q67: 1 | R67: 0 | S67: 2 | T67: 0 | U67: 0 | V67: 1 | W67: 0 | X67: 1 | Y67: 0 | Z67: b2038
A68: 203901 | C68: 每层感电额外获得{0}%吸血 | E68: -1 | G68: 501240 | H68: 501243 | I68: 2039 | J68: 1 | K68: 1 | L68: 0 | M68: 0 | N68: 1 | O68: 0 | P68: -1 | Q68: 1 | R68: 0 | S68: 2 | T68: 0 | U68: 0 | V68: 1 | W68: 0 | X68: 1 | Y68: 0 | Z68: b2039
A69: 204001 | C69: 火属性英雄秒伤提升{0}%（可叠加） | E69: -1 | G69: 501244 | H69: 501256 | I69: 2040 | J69: 5 | K69: 6 | L69: 0 | M69: 0 | N69: 1 | O69: 0 | P69: -1 | Q69: 1 | R69: 0 | S69: 2 | T69: 0 | U69: 0 | V69: 1 | W69: 1 | X69: 1 | Y69: 0 | Z69: b2040
A70: 204101 | C70: 火属性英雄每{0}s恢复{1}%生命（可叠加） | E70: -1 | G70: 501245 | H70: 501257 | I70: 2041 | J70: 5 | K70: 5;2 | L70: 0 | M70: 0 | N70: 1 | O70: 0 | P70: -1 | Q70: 1 | R70: 0 | S70: 2 | T70: 0 | U70: 0 | V70: 1 | W70: 1 | X70: 1 | Y70: 0 | Z70: b2041
A71: 204201 | C71: 火属性英雄每{0}s获得{1}能量（可叠加） | E71: -1 | G71: 501246 | H71: 501258 | I71: 2042 | J71: 5 | K71: 1;1 | L71: 0 | M71: 0 | N71: 1 | O71: 0 | P71: -1 | Q71: 1 | R71: 0 | S71: 2 | T71: 0 | U71: 0 | V71: 1 | W71: 1 | X71: 1 | Y71: 0 | Z71: b2042
A72: 204301 | C72: 冰属性英雄秒伤提升{0}%（可叠加） | E72: -1 | G72: 501247 | H72: 501259 | I72: 2043 | J72: 5 | K72: 6 | L72: 0 | M72: 0 | N72: 1 | O72: 0 | P72: -1 | Q72: 1 | R72: 0 | S72: 2 | T72: 0 | U72: 0 | V72: 1 | W72: 2 | X72: 1 | Y72: 0 | Z72: b2043
A73: 204401 | C73: 冰属性英雄每{0}s恢复{1}%生命（可叠加） | E73: -1 | G73: 501248 | H73: 501260 | I73: 2044 | J73: 5 | K73: 5;2 | L73: 0 | M73: 0 | N73: 1 | O73: 0 | P73: -1 | Q73: 1 | R73: 0 | S73: 2 | T73: 0 | U73: 0 | V73: 1 | W73: 2 | X73: 1 | Y73: 0 | Z73: b2044
A74: 204501 | C74: 冰属性英雄每{0}s获得{1}能量（可叠加） | E74: -1 | G74: 501249 | H74: 501261 | I74: 2045 | J74: 5 | K74: 1;1 | L74: 0 | M74: 0 | N74: 1 | O74: 0 | P74: -1 | Q74: 1 | R74: 0 | S74: 2 | T74: 0 | U74: 0 | V74: 1 | W74: 2 | X74: 1 | Y74: 0 | Z74: b2045
A75: 204601 | C75: 雷属性英雄秒伤提升{0}%（可叠加） | E75: -1 | G75: 501250 | H75: 501262 | I75: 2046 | J75: 5 | K75: 6 | L75: 0 | M75: 0 | N75: 1 | O75: 0 | P75: -1 | Q75: 1 | R75: 0 | S75: 2 | T75: 0 | U75: 0 | V75: 1 | W75: 3 | X75: 1 | Y75: 0 | Z75: b2046
A76: 204701 | C76: 雷属性英雄每{0}s恢复{1}%生命（可叠加） | E76: -1 | G76: 501251 | H76: 501263 | I76: 2047 | J76: 5 | K76: 5;2 | L76: 0 | M76: 0 | N76: 1 | O76: 0 | P76: -1 | Q76: 1 | R76: 0 | S76: 2 | T76: 0 | U76: 0 | V76: 1 | W76: 3 | X76: 1 | Y76: 0 | Z76: b2047
A77: 204801 | C77: 雷属性英雄每{0}s获得{1}能量（可叠加） | E77: -1 | H77: 501264 | I77: 2048 | J77: 5 | K77: 1;1 | L77: 0 | M77: 0 | N77: 1 | O77: 0 | P77: -1 | Q77: 1 | R77: 0 | S77: 2 | T77: 0 | U77: 0 | V77: 1 | W77: 3 | X77: 1 | Y77: 0 | Z77: b2048
A78: 204901 | C78: 所有英雄秒伤提升{0}%（可叠加） | E78: -1 | G78: 501253 | H78: 501265 | I78: 2049 | J78: 5 | K78: 6 | L78: 0 | M78: 0 | N78: 1 | O78: 0 | P78: -1 | Q78: 1 | R78: 0 | S78: 2 | T78: 0 | U78: 0 | V78: 1 | W78: 0 | X78: 1 | Y78: 0 | Z78: b2049
A79: 205001 | C79: 所有英雄每{0}s恢复{1}%生命（可叠加） | E79: -1 | G79: 501254 | H79: 501266 | I79: 2050 | J79: 5 | K79: 5;2 | L79: 0 | M79: 0 | N79: 1 | O79: 0 | P79: -1 | Q79: 1 | R79: 0 | S79: 2 | T79: 0 | U79: 0 | V79: 1 | W79: 0 | X79: 1 | Y79: 0 | Z79: b2050
A80: 205101 | C80: 所有英雄每{0}s获得{1}能量（可叠加） | E80: -1 | G80: 501255 | H80: 501267 | I80: 2051 | J80: 5 | K80: 1;1 | L80: 0 | M80: 0 | N80: 1 | O80: 0 | P80: -1 | Q80: 1 | R80: 0 | S80: 2 | T80: 0 | U80: 0 | V80: 1 | W80: 0 | X80: 1 | Y80: 0 | Z80: b2051
A81: =I81*100+1 -> 205301 | C81: 堆叠中被击落时，物资箱受到额外{0}%生命的伤害 | E81: -1 | G81: 0 | H81: 0 | I81: 2053 | J81: 1 | K81: 10 | L81: 0 | M81: 0 | N81: 1 | O81: 0 | P81: -1 | Q81: 1 | R81: 0 | S81: 2 | T81: 0 | U81: 0 | V81: 1 | W81: 0 | X81: 0 | Y81: 0 | Z81: ="gb"&I81 -> gb2053
A82: 300000 | B82: 噩兆之鸦 | C82: 敌人源源不断，每通过1波，下一波敌人伤害提升{1}%，最大生命提升{2}% | E82: -1 | F82: icon_globalbuff64 | G82: 800118 | H82: 501366 | I82: 3000 | J82: 1 | K82: 0;10;25 | L82: 0 | M82: 0 | N82: 1 | O82: 0 | P82: -1 | Q82: 2 | R82: 0 | S82: 2 | T82: 0 | U82: 0 | V82: 0 | W82: 0 | X82: 2 | Y82: 0 | Z82: gb3000
A83: 300001 | B83: 催眠幽灵 | C83: 首领敌人被击败后眩晕{0}s满状态复活，其他敌人被击败后会重新再后方刷新，每隔{1}s所有敌人的动作速率提升{2}% | E83: -1 | F83: icon_globalbuff65 | G83: 800119 | H83: 501367 | I83: 3001 | J83: 1 | K83: 10;4;1.25 | L83: 0 | M83: 0 | N83: 1 | O83: 0 | P83: -1 | Q83: 2 | R83: 0 | S83: 2 | T83: 0 | U83: 0 | V83: 0 | W83: 0 | X83: 2 | Y83: 0 | Z83: gb3001
A84: 300002 | B84: 曼德拉草 | C84: 所有敌人生命提升{0}%，秒伤提升{1}% | E84: -1 | F84: icon_globalbuff66 | G84: 800120 | H84: 501369 | I84: 3003 | J84: 1 | K84: 30;15 | L84: 0 | M84: 0 | N84: 1 | O84: 0 | P84: -1 | Q84: 2 | R84: 0 | S84: 2 | T84: 0 | U84: 0 | V84: 0 | W84: 0 | X84: 2 | Y84: 0 | Z84: gb3003
A85: 300003 | B85: 蛛网 | C85: 我方的治疗效果减少{0}% | E85: -1 | F85: icon_globalbuff67 | G85: 800121 | H85: 501370 | I85: 3004 | J85: 1 | K85: 50 | L85: 0 | M85: 0 | N85: 1 | O85: 0 | P85: -1 | Q85: 2 | R85: 0 | S85: 2 | T85: 0 | U85: 0 | V85: 0 | W85: 0 | X85: 2 | Y85: 0 | Z85: gb3004
A86: 300004 | B86: 猛毒蛇牙 | C86: 我方英雄每损失{0}%的生命，受到伤害增加{1}% | E86: -1 | F86: icon_globalbuff68 | G86: 800122 | H86: 501368 | I86: 3002 | J86: 1 | K86: 2;1 | L86: 0 | M86: 0 | N86: 1 | O86: 0 | P86: -1 | Q86: 2 | R86: 0 | S86: 2 | T86: 0 | U86: 0 | V86: 0 | W86: 0 | X86: 2 | Y86: 0 | Z86: gb3002
A87: 1 | B87: 权衡之术 | C87: 你队伍中的所有英雄造成的伤害+10%，受到的最终伤害-10%。 | E87: -1 | F87: icon_gd_pingheng | G87: 402589 | H87: 402585 | J87: 1 | K87: 10;10 | L87: 0 | M87: 0 | N87: 1 | O87: 0 | P87: -1 | Q87: 1 | R87: 0 | S87: 2 | T87: 0 | U87: 0 | V87: 0 | W87: 0 | X87: 0 | Y87: 0 | Z87: gb5001
A88: 2 | B88: 坦克之星 | C88: （需要队伍中至少2名坦克）你队伍中的所有坦克英雄受到的最终伤害-35%，并获得【联军】效果。 【联军】：拥有联军效果的所有英雄，共同为没有【联军】效果的英雄承担30%伤害。 | E88: -1 | F88: icon_gd_fangyu | G88: 402590 | H88: 402586 | J88: 1 | K88: 35;30 | L88: 0 | M88: 0 | N88: 1 | O88: 0 | P88: -1 | Q88: 1 | R88: 0 | S88: 2 | T88: 0 | U88: 0 | V88: 0 | W88: 0 | X88: 0 | Y88: 0 | Z88: gb5002
A89: 3 | B89: 进攻大师 | C89: （需要队伍中至少2名输出）你队伍中的所有英雄造成的最终伤害+35% | E89: -1 | F89: icon_gd_shuchu | G89: 402591 | H89: 402587 | J89: 1 | K89: 35 | L89: 0 | M89: 0 | N89: 1 | O89: 0 | P89: -1 | Q89: 1 | R89: 0 | S89: 2 | T89: 0 | U89: 0 | V89: 0 | W89: 0 | X89: 0 | Y89: 0 | Z89: gb5003
A90: 4 | B90: 治疗之道 | C90: （需要队伍中至少2名辅助和治疗）英雄和神器的所有团队增益效果和光环效果范围扩大至全团。你队伍中的所有英雄造成的治疗效果和效果命中+35% | E90: -1 | F90: icon_gd_fuzhu | G90: 402592 | H90: 402588 | J90: 1 | K90: 35;35 | L90: 0 | M90: 0 | N90: 1 | O90: 0 | P90: -1 | Q90: 1 | R90: 0 | S90: 2 | T90: 0 | U90: 0 | V90: 0 | W90: 0 | X90: 0 | Y90: 0 | Z90: gb5004
A91: 400000 | B91: 战斗课题机制 | C91: 怪物最终伤害降低{0}%，怪物生命提升{3}%，每通过一关怪物的最终伤害提升{1}%生命提升{2}% | E91: -1 | G91: 800208 | H91: 800209 | I91: 4000 | J91: 999 | K91: 40;3;10;50 | L91: 0 | M91: 0 | N91: 1 | O91: 0 | P91: -1 | Q91: 1 | R91: 0 | S91: 2 | T91: 0 | U91: 0 | V91: 1 | W91: 0 | X91: 0 | Y91: 1 | Z91: ="gb"&I91 -> gb4000
A92: 400001 | B92: 战斗课题机制 | C92: 怪物移速提升{0}% | E92: -1 | G92: 800046 | H92: 800125 | I92: 4001 | J92: 1 | K92: 25 | L92: 0 | M92: 0 | N92: 1 | O92: 0 | P92: -1 | Q92: 1 | R92: 0 | S92: 2 | T92: 0 | U92: 0 | V92: 1 | W92: 0 | X92: 0 | Y92: 1 | Z92: ="gb"&I92 -> gb4001
A93: 400002 | B93: 战斗课题机制 | C93: 怪物移速提升{0}% | E93: -1 | G93: 800047 | H93: 800126 | I93: 4001 | J93: 1 | K93: 50 | L93: 0 | M93: 0 | N93: 1 | O93: 0 | P93: -1 | Q93: 1 | R93: 0 | S93: 2 | T93: 0 | U93: 0 | V93: 1 | W93: 0 | X93: 0 | Y93: 1 | Z93: ="gb"&I93 -> gb4001
A94: 400003 | B94: 战斗课题机制 | C94: 怪物效果抗性、效果命中提升{0}% | E94: -1 | G94: 800048 | H94: 800127 | I94: 4003 | J94: 1 | K94: 20 | L94: 0 | M94: 0 | N94: 1 | O94: 0 | P94: -1 | Q94: 1 | R94: 0 | S94: 2 | T94: 0 | U94: 0 | V94: 1 | W94: 0 | X94: 0 | Y94: 1 | Z94: gb4003
A95: 400004 | B95: 战斗课题机制 | C95: 怪物效果抗性、效果命中提升{0}% | E95: -1 | G95: 800049 | H95: 800128 | I95: 4003 | J95: 1 | K95: 40 | L95: 0 | M95: 0 | N95: 1 | O95: 0 | P95: -1 | Q95: 2 | R95: 0 | S95: 2 | T95: 0 | U95: 0 | V95: 1 | W95: 0 | X95: 0 | Y95: 1 | Z95: gb4003
A96: 400005 | B96: 战斗课题机制 | C96: {0}层后的战斗中，非首领怪物死亡时有{1}%概率重新出现 | E96: -1 | G96: 800050 | H96: 800129 | I96: 4005 | J96: 1 | K96: 12;25 | L96: 0 | M96: 0 | N96: 1 | O96: 0 | P96: -1 | Q96: 2 | R96: 0 | S96: 2 | T96: 0 | U96: 0 | V96: 1 | W96: 0 | X96: 0 | Y96: 1 | Z96: gb4005
A97: 400006 | B97: 战斗课题机制 | C97: 怪物最终伤害降低{0}%，怪物生命提升{3}%，每通过一关怪物的最终伤害提升{1}%生命提升{2}% | E97: -1 | G97: 800208 | H97: 800209 | I97: 4000 | J97: 999 | K97: 40;3;20;200 | L97: 0 | M97: 0 | N97: 1 | O97: 0 | P97: -1 | Q97: 1 | R97: 0 | S97: 2 | T97: 0 | U97: 0 | V97: 1 | W97: 0 | X97: 0 | Y97: 1 | Z97: gb4000
A98: 400007 | B98: 战斗课题机制 | C98: 怪物受到来自火属性英雄的伤害降低{0}% | E98: -1 | G98: 800052 | H98: 800131 | I98: 4007 | J98: 1 | K98: 10;1 | L98: 0 | M98: 0 | N98: 1 | O98: 0 | P98: -1 | Q98: 2 | R98: 0 | S98: 2 | T98: 0 | U98: 0 | V98: 0 | W98: 0 | X98: 0 | Y98: 1 | Z98: gb4007
A99: 400078 | B99: 战斗课题机制 | C99: 怪物受到来自冰属性英雄的伤害降低{0}% | E99: -1 | G99: 800053 | H99: 800132 | I99: 4007 | J99: 1 | K99: 10;2 | L99: 0 | M99: 0 | N99: 1 | O99: 0 | P99: -1 | Q99: 2 | R99: 0 | S99: 2 | T99: 0 | U99: 0 | V99: 0 | W99: 0 | X99: 0 | Y99: 1 | Z99: gb4007
A100: 400079 | B100: 战斗课题机制 | C100: 怪物受到来自雷属性英雄的伤害降低{0}% | E100: -1 | G100: 800054 | H100: 800133 | I100: 4007 | J100: 1 | K100: 10;3 | L100: 0 | M100: 0 | N100: 1 | O100: 0 | P100: -1 | Q100: 2 | R100: 0 | S100: 2 | T100: 0 | U100: 0 | V100: 0 | W100: 0 | X100: 0 | Y100: 1 | Z100: gb4007
A101: 400008 | B101: 战斗课题机制 | C101: 怪物效果抗性、效果命中提升{0}%。 | E101: -1 | G101: 800055 | H101: 800134 | I101: 4008 | J101: 1 | K101: 25 | L101: 0 | M101: 0 | N101: 1 | O101: 0 | P101: -1 | Q101: 2 | R101: 0 | S101: 2 | T101: 0 | U101: 0 | V101: 0 | W101: 0 | X101: 0 | Y101: 1 | Z101: gb4008
A102: 400009 | B102: 战斗课题机制 | C102: 进阶和精英怪物免疫控制效果。 | E102: -1 | G102: 800056 | H102: 800135 | I102: 4009 | J102: 1 | K102: -1 | L102: 0 | M102: 0 | N102: 1 | O102: 0 | P102: -1 | Q102: 2 | R102: 0 | S102: 2 | T102: 0 | U102: 0 | V102: 0 | W102: 0 | X102: 0 | Y102: 1 | Z102: gb4009
A103: 400010 | B103: 战斗课题机制 | C103: buff栏位提升{0}个。 | E103: -1 | G103: 800057 | H103: 800136 | I103: 4010 | J103: 1 | K103: 1 | L103: 0 | M103: 0 | N103: 1 | O103: 0 | P103: -1 | Q103: 2 | R103: 0 | S103: 2 | T103: 0 | U103: 0 | V103: 0 | W103: 0 | X103: 0 | Y103: 1 | Z103: gb4010
A104: 400011 | B104: 幽光甲虫 | C104: 【传奇】战斗开始时，所有英雄和神器处于满能量状态。生命上限{0}%。 | D104: 4 | E104: -1 | F104: icon_globalbuff25 | G104: 800058 | H104: 800137 | I104: 4011 | J104: =IF(D104=1,5,IF(D104=2,2,(IF(D104=3,3,1)))) -> 1 | K104: 0 | L104: 0 | M104: =CHOOSE(MAX(1,D104),3,5,5,7) -> 7 | N104: 1 | O104: 0 | P104: -1 | Q104: 1 | R104: 0 | S104: 2 | T104: 0 | U104: 0 | V104: 0 | W104: 0 | X104: 1 | Y104: 2 | Z104: gb4011
A105: 400012 | B105: 人形果实 | C105: 【传奇】受到致命伤害后，可以满血满能量复活，每场战斗仅限1次。秒伤{0}%。 | D105: 4 | E105: -1 | F105: icon_globalbuff26 | G105: 800059 | H105: 800138 | I105: 4012 | J105: =IF(D105=1,5,IF(D105=2,2,(IF(D105=3,3,1)))) -> 1 | K105: 0 | L105: 0 | M105: =CHOOSE(MAX(1,D105),3,5,5,7) -> 7 | N105: 1 | O105: 0 | P105: -1 | Q105: 1 | R105: 0 | S105: 2 | T105: 0 | U105: 0 | V105: 0 | W105: 0 | X105: 1 | Y105: 2 | Z105: gb4012
A106: 400013 | B106: 梦幻果实 | C106: 小技能技能冷却恢复速度{0}%。生命上限{1}% | D106: 1 | E106: -1 | F106: icon_globalbuff22 | G106: 800060 | H106: 800139 | I106: 4013 | J106: 5 | K106: 15;0 | L106: 0 | M106: 3 | N106: 1 | O106: 0 | P106: -1 | Q106: 1 | R106: 0 | S106: 2 | T106: 0 | U106: 0 | V106: 0 | W106: 0 | X106: 1 | Y106: 2 | Z106: gb4013
A107: 400014 | B107: 将破之蛹 | C107: 击败敌人时，小技能恢复时间{0}秒。生命上限{1}%。 | D107: 3 | E107: -1 | F107: icon_globalbuff23 | G107: 800061 | H107: 800140 | I107: 4014 | J107: 3 | K107: 3;0 | L107: 0 | M107: 5 | N107: 1 | O107: 0 | P107: -1 | Q107: 1 | R107: 0 | S107: 2 | T107: 0 | U107: 0 | V107: 0 | W107: 0 | X107: 1 | Y107: 2 | Z107: gb4014
A108: 400015 | B108: 五彩尖刺 | C108: 对精英和BOSS的伤害+{0}%。生命上限{1}%。 | D108: 3 | E108: -1 | F108: icon_globalbuff24 | G108: 800062 | H108: 800141 | I108: 4015 | J108: 3 | K108: 20;0 | L108: 0 | M108: 5 | N108: 1 | O108: 0 | P108: -1 | Q108: 1 | R108: 0 | S108: 2 | T108: 0 | U108: 0 | V108: 0 | W108: 0 | X108: 1 | Y108: 2 | Z108: gb4015
A109: 400016 | B109: 会长语录 | C109: 处于堆叠状态时，秒伤每秒提升{0}%，最大{1}%。生命上限{2}%。 | D109: 3 | E109: -1 | F109: icon_globalbuff5 | G109: 800063 | H109: 800142 | I109: 4016 | J109: 3 | K109: 1;50;0 | L109: 0 | M109: 5 | N109: 1 | O109: 0 | P109: -1 | Q109: 1 | R109: 0 | S109: 2 | T109: 0 | U109: 0 | V109: 0 | W109: 0 | X109: 1 | Y109: 2 | Z109: gb4016
A110: 400017 | B110: 磨刀石 | C110: 能量回复提升{0}%。生命上限{1}%。 | D110: 1 | E110: -1 | F110: icon_globalbuff3 | G110: 800064 | H110: 800143 | I110: 4017 | J110: 5 | K110: 20;0 | L110: 0 | M110: 3 | N110: 1 | O110: 0 | P110: -1 | Q110: 1 | R110: 0 | S110: 2 | T110: 0 | U110: 0 | V110: 0 | W110: 0 | X110: 1 | Y110: 2 | Z110: gb4017
A111: 400018 | B111: 放电怪鱼 | C111: 堆叠后{0}秒内，免疫控制。秒伤{1}% | D111: 1 | E111: -1 | F111: icon_globalbuff27 | G111: 800065 | H111: 800144 | I111: 4018 | J111: 5 | K111: 10;0 | L111: 0 | M111: 3 | N111: 1 | O111: 0 | P111: -1 | Q111: 1 | R111: 0 | S111: 2 | T111: 0 | U111: 0 | V111: 0 | W111: 0 | X111: 1 | Y111: 2 | Z111: gb4018
A112: 400019 | B112: 异种史莱姆 | C112: 跌落抗性提升{0}%。秒伤{1}% | D112: 1 | E112: -1 | F112: icon_globalbuff28 | G112: 800066 | H112: 800145 | I112: 4019 | J112: 5 | K112: 20;0 | L112: 0 | M112: 3 | N112: 1 | O112: 0 | P112: -1 | Q112: 1 | R112: 0 | S112: 2 | T112: 0 | U112: 0 | V112: 0 | W112: 0 | X112: 1 | Y112: 2 | Z112: gb4019
A113: 400020 | B113: 吸血恶蝇 | C113: 击败敌人时，回复{0}%生命。秒伤{1}% | D113: 1 | E113: -1 | F113: icon_globalbuff29 | G113: 800067 | H113: 800146 | I113: 4020 | J113: 5 | K113: 10;0 | L113: 0 | M113: 3 | N113: 1 | O113: 0 | P113: -1 | Q113: 1 | R113: 0 | S113: 2 | T113: 0 | U113: 0 | V113: 0 | W113: 0 | X113: 1 | Y113: 2 | Z113: gb4020
A114: 400021 | B114: 醒神嫩芽 | C114: 效果命中提升{0}。秒伤{1}% | D114: 1 | E114: -1 | F114: icon_globalbuff30 | G114: 800068 | H114: 800147 | I114: 4021 | J114: 5 | K114: 20;0 | L114: 0 | M114: 3 | N114: 1 | O114: 0 | P114: -1 | Q114: 1 | R114: 0 | S114: 2 | T114: 0 | U114: 0 | V114: 0 | W114: 0 | X114: 1 | Y114: 2 | Z114: gb4021
A115: 400022 | B115: 呼吸水母 | C115: 全体获得{0}%免伤效果 | D115: 3 | E115: -1 | F115: icon_globalbuff31 | G115: 800069 | H115: 800148 | I115: 4022 | J115: 3 | K115: 10;0 | L115: 0 | M115: 5 | N115: 1 | O115: 0 | P115: -1 | Q115: 1 | R115: 0 | S115: 2 | T115: 0 | U115: 0 | V115: 0 | W115: 0 | X115: 1 | Y115: 2 | Z115: gb4022
A116: 400023 | B116: 火龙血 | C116: 【传奇】普通攻击有{0}%概率可以激活【焚烧】和【爆裂】效果。 | D116: 3 | E116: -1 | F116: icon_globalbuff32 | G116: 800070 | H116: 800149 | I116: 4023 | J116: =IF(D116=1,3,IF(D116=2,2,(IF(D116=3,1,1)))) -> 1 | K116: 15 | L116: 0 | M116: 0 | N116: 1 | O116: 0 | P116: -1 | Q116: 1 | R116: 0 | S116: 2 | T116: 0 | U116: 0 | V116: 0 | W116: 0 | X116: 0 | Y116: 3 | Z116: gb4023
A117: 400024 | B117: 地狱喷火枪 | C117: 【传奇】【焚烧】或【爆裂】的持续时间延长{0}秒 | D117: 3 | E117: -1 | F117: icon_globalbuff33 | G117: 800071 | H117: 800150 | I117: 4024 | J117: 1 | K117: 10 | L117: 0 | M117: 0 | N117: 1 | O117: 0 | P117: -1 | Q117: 1 | R117: 0 | S117: 2 | T117: 0 | U117: 0 | V117: 0 | W117: 0 | X117: 0 | Y117: 3 | Z117: gb4024
A118: 400025 | B118: 热毒果实 | C118: 火属性英雄秒伤+{0}% | D118: 1 | E118: -1 | F118: icon_globalbuff13 | G118: 800072 | H118: 800151 | I118: 4025 | J118: 3 | K118: 20 | L118: 0 | M118: 0 | N118: 1 | O118: 0 | P118: -1 | Q118: 1 | R118: 0 | S118: 2 | T118: 0 | U118: 0 | V118: 0 | W118: 0 | X118: 0 | Y118: 3 | Z118: gb4025
A119: 400026 | B119: 滴血弱虫 | C119: 减益伤害提升{0}%。 | D119: 1 | E119: -1 | F119: icon_globalbuff14 | G119: 800073 | H119: 800152 | I119: 4026 | J119: 3 | K119: 50 | L119: 0 | M119: 0 | N119: 1 | O119: 0 | P119: -1 | Q119: 1 | R119: 0 | S119: 2 | T119: 0 | U119: 0 | V119: 0 | W119: 0 | X119: 0 | Y119: 3 | Z119: gb4026
A120: 400027 | B120: 猩红尾针 | C120: 敌人身上每有一个减益，受到伤害提升{0}% | D120: 2 | E120: -1 | F120: icon_globalbuff15 | G120: 800074 | H120: 800153 | I120: 4027 | J120: 2 | K120: 10 | L120: 0 | M120: 0 | N120: 1 | O120: 0 | P120: -1 | Q120: 1 | R120: 0 | S120: 2 | T120: 0 | U120: 0 | V120: 0 | W120: 0 | X120: 0 | Y120: 3 | Z120: gb4027
A121: 400028 | B121: 红色能量饮料 | C121: 普攻有{0}%概率为敌人附加【燃烧】效果。 | D121: 2 | E121: -1 | F121: icon_globalbuff34 | G121: 800075 | H121: 800154 | I121: 4028 | J121: 2 | K121: 25 | L121: 0 | M121: 0 | N121: 1 | O121: 0 | P121: -1 | Q121: 1 | R121: 0 | S121: 2 | T121: 0 | U121: 0 | V121: 0 | W121: 0 | X121: 0 | Y121: 3 | Z121: gb4028
A122: 400029 | B122: 红色闹钟 | C122: 敌方效果抗性降低{0}% | D122: 1 | E122: -1 | F122: icon_globalbuff35 | G122: 800076 | H122: 800155 | I122: 4029 | J122: 3 | K122: 20 | L122: 0 | M122: 0 | N122: 1 | O122: 0 | P122: -1 | Q122: 1 | R122: 0 | S122: 2 | T122: 0 | U122: 0 | V122: 0 | W122: 0 | X122: 0 | Y122: 3 | Z122: gb4029
A123: 400030 | B123: 红色急救箱 | C123: 每个减益效果会导致敌人秒伤和恢复能力降低{0}% | D123: 2 | E123: -1 | F123: icon_globalbuff36 | G123: 800077 | H123: 800156 | I123: 4030 | J123: 2 | K123: 5 | L123: 0 | M123: 0 | N123: 1 | O123: 0 | P123: -1 | Q123: 1 | R123: 0 | S123: 2 | T123: 0 | U123: 0 | V123: 0 | W123: 0 | X123: 0 | Y123: 3 | Z123: gb4030
A124: 400031 | B124: 红色头巾 | C124: 技能吸血提升{0}%。 | D124: 1 | E124: -1 | F124: icon_globalbuff37 | G124: 800078 | H124: 800157 | I124: 4031 | J124: 3 | K124: 5 | L124: 0 | M124: 0 | N124: 1 | O124: 0 | P124: -1 | Q124: 1 | R124: 0 | S124: 2 | T124: 0 | U124: 0 | V124: 0 | W124: 0 | X124: 0 | Y124: 3 | Z124: gb4031
A125: 400032 | B125: 红色腰带 | C125: 每个死于【燃烧】状态的敌人，恢复我方全体{0}点能量。 | D125: 2 | E125: -1 | F125: icon_globalbuff38 | G125: 800079 | H125: 800158 | I125: 4032 | J125: 2 | K125: 80 | L125: 0 | M125: 0 | N125: 1 | O125: 0 | P125: -1 | Q125: 1 | R125: 0 | S125: 2 | T125: 0 | U125: 0 | V125: 0 | W125: 0 | X125: 0 | Y125: 3 | Z125: gb4032
A126: 400033 | B126: 冰之镜 | C126: 【传奇】对敌人造成的伤害{0}%转化为护盾 | D126: 3 | E126: -1 | F126: icon_globalbuff39 | G126: 800080 | H126: 800159 | I126: 4033 | J126: 1 | K126: 20 | L126: 0 | M126: 0 | N126: 1 | O126: 0 | P126: -1 | Q126: 1 | R126: 0 | S126: 2 | T126: 0 | U126: 0 | V126: 0 | W126: 0 | X126: 0 | Y126: 4 | Z126: gb4033
A127: 400034 | B127: 水晶匕首 | C127: 【传奇】对【寒冰】状态的敌人，伤害提升{0}%。 | D127: 3 | E127: -1 | F127: icon_globalbuff40 | G127: 800081 | H127: 800160 | I127: 4034 | J127: 1 | K127: 100 | L127: 0 | M127: 0 | N127: 1 | O127: 0 | P127: -1 | Q127: 1 | R127: 0 | S127: 2 | T127: 0 | U127: 0 | V127: 0 | W127: 0 | X127: 0 | Y127: 4 | Z127: gb4034
A128: 400035 | B128: 冰凛果实 | C128: 冰属性英雄秒伤+{0}% | D128: 1 | E128: -1 | F128: icon_globalbuff16 | G128: 800082 | H128: 800161 | I128: 4035 | J128: 3 | K128: 20 | L128: 0 | M128: 0 | N128: 1 | O128: 0 | P128: -1 | Q128: 1 | R128: 0 | S128: 2 | T128: 0 | U128: 0 | V128: 0 | W128: 0 | X128: 0 | Y128: 4 | Z128: gb4035
A129: 400036 | B129: 僵死弱虫 | C129: 开始战斗时，获得{0}%生命的护盾 | D129: 1 | E129: -1 | F129: icon_globalbuff17 | G129: 800083 | H129: 800162 | I129: 4036 | J129: 3 | K129: 10 | L129: 0 | M129: 0 | N129: 1 | O129: 0 | P129: -1 | Q129: 1 | R129: 0 | S129: 2 | T129: 0 | U129: 0 | V129: 0 | W129: 0 | X129: 0 | Y129: 4 | Z129: gb4036
A130: 400037 | B130: 苍蓝尾针 | C130: 护盾反弹{0}%伤害。 | D130: 2 | E130: -1 | F130: icon_globalbuff18 | G130: 800084 | H130: 800163 | I130: 4037 | J130: 2 | K130: 30 | L130: 0 | M130: 0 | N130: 1 | O130: 0 | P130: -1 | Q130: 1 | R130: 0 | S130: 2 | T130: 0 | U130: 0 | V130: 0 | W130: 0 | X130: 0 | Y130: 4 | Z130: gb4037
A131: 400038 | B131: 蓝色能量饮料 | C131: 拥有护盾时，伤害减免{0}%。 | D131: 1 | E131: -1 | F131: icon_globalbuff41 | G131: 800085 | H131: 800164 | I131: 4038 | J131: 3 | K131: 5 | L131: 0 | M131: 0 | N131: 1 | O131: 0 | P131: -1 | Q131: 1 | R131: 0 | S131: 2 | T131: 0 | U131: 0 | V131: 0 | W131: 0 | X131: 0 | Y131: 4 | Z131: gb4038
A132: 400039 | B132: 蓝色闹钟 | C132: 普攻有{0}%概率为敌人附加【寒冰】效果。 | D132: 2 | E132: -1 | F132: icon_globalbuff42 | G132: 800086 | H132: 800165 | I132: 4039 | J132: 2 | K132: 25 | L132: 0 | M132: 0 | N132: 1 | O132: 0 | P132: -1 | Q132: 1 | R132: 0 | S132: 2 | T132: 0 | U132: 0 | V132: 0 | W132: 0 | X132: 0 | Y132: 4 | Z132: gb4039
A133: 400040 | B133: 蓝色头巾 | C133: 寒冷的减速效果提升{0}% | D133: 1 | E133: -1 | F133: icon_globalbuff43 | G133: 800087 | H133: 800166 | I133: 4040 | J133: 3 | K133: 20 | L133: 0 | M133: 0 | N133: 1 | O133: 0 | P133: -1 | Q133: 1 | R133: 0 | S133: 2 | T133: 0 | U133: 0 | V133: 0 | W133: 0 | X133: 0 | Y133: 4 | Z133: gb4040
A134: 400041 | B134: 蓝色腰带 | C134: 寒冰状态的敌人，被击退距离提升{0}% | D134: 2 | E134: -1 | F134: icon_globalbuff44 | G134: 800088 | H134: 800167 | I134: 4041 | J134: 2 | K134: 50 | L134: 0 | M134: 0 | N134: 1 | O134: 0 | P134: -1 | Q134: 1 | R134: 0 | S134: 2 | T134: 0 | U134: 0 | V134: 0 | W134: 0 | X134: 0 | Y134: 4 | Z134: gb4041
A135: 400042 | B135: 蓝色急救箱 | C135: 对来自【寒冰】状态的敌人的攻击，闪避提升{0}% | D135: 2 | E135: -1 | F135: icon_globalbuff45 | G135: 800089 | H135: 800168 | I135: 4042 | J135: 2 | K135: 20 | L135: 0 | M135: 0 | N135: 1 | O135: 0 | P135: -1 | Q135: 1 | R135: 0 | S135: 2 | T135: 0 | U135: 0 | V135: 0 | W135: 0 | X135: 0 | Y135: 4 | Z135: gb4042
A136: 400043 | B136: 蓝色拳套 | C136: 对【寒冰】影响下的敌人造成伤害时有{0}%概率【冻结】敌人 | D136: 2 | E136: -1 | F136: icon_globalbuff46 | G136: 800090 | H136: 800169 | I136: 4043 | J136: 2 | K136: 5 | L136: 0 | M136: 0 | N136: 1 | O136: 0 | P136: -1 | Q136: 1 | R136: 0 | S136: 2 | T136: 0 | U136: 0 | V136: 0 | W136: 0 | X136: 0 | Y136: 4 | Z136: gb4043
A137: 400044 | B137: 电击棒 | C137: 【传奇】普通攻击命中时，对所有敌人造成{0}%的秒伤伤害，每1s只能发动一次。(每个英雄独立计算) | D137: 3 | E137: -1 | F137: icon_globalbuff47 | G137: 800091 | H137: 800170 | I137: 4044 | J137: =IF(D137=1,3,IF(D137=2,2,(IF(D137=3,1,1)))) -> 1 | K137: 10;1 | L137: 0 | M137: 0 | N137: 1 | O137: 0 | P137: -1 | Q137: 1 | R137: 0 | S137: 2 | T137: 0 | U137: 0 | V137: 0 | W137: 0 | X137: 0 | Y137: 5 | Z137: gb4044
A138: 400045 | B138: 能量饮料 | C138: 【传奇】【感电】有{0}%概率不被消耗 | D138: 3 | E138: -1 | F138: icon_globalbuff48 | G138: 800092 | H138: 800171 | I138: 4045 | J138: 1 | K138: 50 | L138: 0 | M138: 0 | N138: 1 | O138: 0 | P138: -1 | Q138: 1 | R138: 0 | S138: 2 | T138: 0 | U138: 0 | V138: 0 | W138: 0 | X138: 0 | Y138: 5 | Z138: gb4045
A139: 400046 | B139: 触电果实 | C139: 雷属性英雄秒伤+{1}% | D139: 1 | E139: -1 | F139: icon_globalbuff19 | G139: 800093 | H139: 800172 | I139: 4046 | J139: 3 | K139: 20 | L139: 0 | M139: 0 | N139: 1 | O139: 0 | P139: -1 | Q139: 1 | R139: 0 | S139: 2 | T139: 0 | U139: 0 | V139: 0 | W139: 0 | X139: 0 | Y139: 5 | Z139: gb4046
A140: 400047 | B140: 躁动弱虫 | C140: 每拥有一种增益状态，获得{0}%减伤。 | D140: 1 | E140: -1 | F140: icon_globalbuff20 | G140: 800094 | H140: 800173 | I140: 4047 | J140: 3 | K140: 10 | L140: 0 | M140: 0 | N140: 1 | O140: 0 | P140: -1 | Q140: 1 | R140: 0 | S140: 2 | T140: 0 | U140: 0 | V140: 0 | W140: 0 | X140: 0 | Y140: 5 | Z140: gb4047
A141: 400048 | B141: 闪耀尾针 | C141: 每次普通攻击，有{0}%概率恢复{1}能量。 | D141: 1 | E141: -1 | F141: icon_globalbuff21 | G141: 800095 | H141: 800174 | I141: 4048 | J141: 3 | K141: 10;5 | L141: 0 | M141: 0 | N141: 1 | O141: 0 | P141: -1 | Q141: 1 | R141: 0 | S141: 2 | T141: 0 | U141: 0 | V141: 0 | W141: 0 | X141: 0 | Y141: 5 | Z141: gb4048
A142: 400049 | B142: 黄色能量饮料 | C142: 每次使用小招，有{0}%概率获得【增伤】 | D142: 2 | E142: -1 | F142: icon_globalbuff49 | G142: 800096 | H142: 800175 | I142: 4049 | J142: 2 | K142: 30 | L142: 0 | M142: 0 | N142: 1 | O142: 0 | P142: -1 | Q142: 1 | R142: 0 | S142: 2 | T142: 0 | U142: 0 | V142: 0 | W142: 0 | X142: 0 | Y142: 5 | Z142: gb4049
A143: 400050 | B143: 黄色闹钟 | C143: 每波战斗开始时,所有敌人的防御力降低{0}%，持续{1}s | D143: 2 | E143: -1 | F143: icon_globalbuff50 | G143: 800097 | H143: 800176 | I143: 4050 | J143: 2 | K143: 30;15 | L143: 0 | M143: 0 | N143: 1 | O143: 0 | P143: -1 | Q143: 1 | R143: 0 | S143: 2 | T143: 0 | U143: 0 | V143: 0 | W143: 0 | X143: 0 | Y143: 5 | Z143: gb4050
A144: 400051 | B144: 黄色腰带 | C144: 释放连锁闪电时，有{0}%几率驱散敌方一种增益效果。 | D144: 1 | E144: -1 | F144: icon_globalbuff51 | G144: 800098 | H144: 800177 | I144: 4051 | J144: 3 | K144: 10 | L144: 0 | M144: 0 | N144: 1 | O144: 0 | P144: -1 | Q144: 1 | R144: 0 | S144: 2 | T144: 0 | U144: 0 | V144: 0 | W144: 0 | X144: 0 | Y144: 5 | Z144: gb4051
A145: 400052 | B145: 黄色急救箱 | C145: 释放连锁闪电时，有{0}%概率获得【吸血】。 | D145: 2 | E145: -1 | F145: icon_globalbuff52 | G145: 800099 | H145: 800178 | I145: 4052 | J145: 2 | K145: 30 | L145: 0 | M145: 0 | N145: 1 | O145: 0 | P145: -1 | Q145: 1 | R145: 0 | S145: 2 | T145: 0 | U145: 0 | V145: 0 | W145: 0 | X145: 0 | Y145: 5 | Z145: gb4052
A146: 400053 | B146: 黄色头巾 | C146: 释放连锁闪电时，有{0}%概率获得【暴击】。 | D146: 2 | E146: -1 | F146: icon_globalbuff53 | G146: 800100 | H146: 800179 | I146: 4053 | J146: 2 | K146: 30 | L146: 0 | M146: 0 | N146: 1 | O146: 0 | P146: -1 | Q146: 1 | R146: 0 | S146: 2 | T146: 0 | U146: 0 | V146: 0 | W146: 0 | X146: 0 | Y146: 5 | Z146: gb4053
A147: 400054 | B147: 火纹徽章 | C147: 烈焰：火系buff出现概率提升{0}%。 | D147: 4 | E147: -1 | F147: icon_globalbuff6 | G147: 800101 | H147: 800180 | I147: 4054 | J147: 1 | K147: 150 | L147: 0 | M147: 0 | N147: 1 | O147: 0 | P147: -1 | Q147: 1 | R147: 0 | S147: 2 | T147: 0 | U147: 0 | V147: 0 | W147: 0 | X147: 0 | Y147: 6 | Z147: gb4054
A148: 400055 | B148: 冰霜徽章 | C148: 寒冰：冰系buff出现概率提升{0}%。 | D148: 4 | E148: -1 | F148: icon_globalbuff7 | G148: 800102 | H148: 800181 | I148: 4055 | J148: 1 | K148: 150 | L148: 0 | M148: 0 | N148: 1 | O148: 0 | P148: -1 | Q148: 1 | R148: 0 | S148: 2 | T148: 0 | U148: 0 | V148: 0 | W148: 0 | X148: 0 | Y148: 6 | Z148: gb4055
A149: 400056 | B149: 雷鸣徽章 | C149: 雷电：电系buff出现概率提升{0}%。 | D149: 4 | E149: -1 | F149: icon_globalbuff8 | G149: 800103 | H149: 800182 | I149: 4056 | J149: 1 | K149: 150 | L149: 0 | M149: 0 | N149: 1 | O149: 0 | P149: -1 | Q149: 1 | R149: 0 | S149: 2 | T149: 0 | U149: 0 | V149: 0 | W149: 0 | X149: 0 | Y149: 6 | Z149: gb4056
A150: 400057 | B150: 多彩徽章 | C150: 深渊：深渊buff出现概率提升{0}%。 | D150: 4 | E150: -1 | F150: icon_globalbuff9 | G150: 800104 | H150: 800183 | I150: 4057 | J150: 1 | K150: 150 | L150: 0 | M150: 0 | N150: 1 | O150: 0 | P150: -1 | Q150: 1 | R150: 0 | S150: 2 | T150: 0 | U150: 0 | V150: 0 | W150: 0 | X150: 0 | Y150: 6 | Z150: gb4057
A151: 400058 | B151: 堡垒之门 | C151: 增加buff池组{0}到可选buff中。 | D151: 0 | E151: -1 | F151: icon_globalbuff10 | G151: 800105 | H151: 800184 | I151: 4058 | J151: 1 | K151: 10 | L151: 0 | M151: 0 | N151: 1 | O151: 0 | P151: -1 | Q151: 1 | R151: 0 | S151: 2 | T151: 0 | U151: 0 | V151: 1 | W151: 0 | X151: 0 | Y151: 7 | Z151: gb4058
A152: 400059 | B152: 主教之杖 | C152: 开始冒险时，可以额外选择{0}次buff | D152: 0 | E152: -1 | F152: icon_globalbuff11 | G152: 800106 | H152: 800185 | I152: 4059 | J152: 1 | K152: 1 | L152: 0 | M152: 0 | N152: 1 | O152: 0 | P152: -1 | Q152: 1 | R152: 0 | S152: 2 | T152: 0 | U152: 0 | V152: 1 | W152: 0 | X152: 0 | Y152: 7 | Z152: gb4059
A153: 400060 | B153: 骑士之枪 | C153: 选择buff时，选项增加{0}个。 | D153: 4 | E153: -1 | F153: icon_globalbuff12 | G153: 800107 | H153: 800186 | I153: 4060 | J153: 1 | K153: 1 | L153: 0 | M153: 0 | N153: 1 | O153: 0 | P153: -1 | Q153: 1 | R153: 0 | S153: 2 | T153: 0 | U153: 0 | V153: 1 | W153: 0 | X153: 0 | Y153: 7 | Z153: gb4060
A154: 400061 | B154: 饥饿宝箱 | C154: 满足历练晶石获取条件时，额外获得{0}个历练晶石。 | D154: 2 | E154: -1 | F154: icon_globalbuff54 | G154: 800108 | H154: 800187 | I154: 4061 | J154: 2 | K154: 5 | L154: 0 | M154: 0 | N154: 1 | O154: 0 | P154: -1 | Q154: 1 | R154: 0 | S154: 2 | T154: 0 | U154: 0 | V154: 1 | W154: 0 | X154: 0 | Y154: 7 | Z154: gb4061
A155: 400062 | B155: 贵宾金卡 | C155: 在模拟商店消费-{0}% off | D155: 2 | E155: -1 | F155: icon_globalbuff55 | G155: 800109 | H155: 800188 | I155: 4062 | J155: 2 | K155: 30 | L155: 0 | M155: 0 | N155: 1 | O155: 0 | P155: -1 | Q155: 1 | R155: 0 | S155: 2 | T155: 0 | U155: 0 | V155: 1 | W155: 0 | X155: 0 | Y155: 7 | Z155: gb4062
A156: 400063 | B156: 韧性披风 | C156: 撞到荆棘时，有{0}%概率不受伤害。 | D156: 2 | E156: -1 | F156: icon_globalbuff56 | G156: 800110 | H156: 800189 | I156: 4063 | J156: 2 | K156: 75 | L156: 0 | M156: 0 | N156: 1 | O156: 0 | P156: -1 | Q156: 1 | R156: 0 | S156: 2 | T156: 0 | U156: 0 | V156: 1 | W156: 0 | X156: 0 | Y156: 7 | Z156: gb4063
A157: 400064 | B157: 巧手手套 | C157: 进行采集后，有{0}%概率恢复{1}%生命。 | D157: 1 | E157: -1 | F157: icon_globalbuff57 | G157: 800111 | H157: 800190 | I157: 4064 | J157: 3 | K157: 50;20 | L157: 0 | M157: 0 | N157: 1 | O157: 0 | P157: -1 | Q157: 1 | R157: 0 | S157: 2 | T157: 0 | U157: 0 | V157: 1 | W157: 0 | X157: 0 | Y157: 7 | Z157: ="gb"&I157 -> gb4064
A158: 400065 | B158: 金刚石钻头 | C158: 进行挖掘后，有{0}%概率发现{1}个代币。专门处理过，在藏宝图和肉鸽中会获得不同的代币。 | D158: 1 | E158: -1 | F158: icon_globalbuff58 | G158: 800112 | H158: 800191 | I158: 4065 | J158: 3 | K158: 50;10 | L158: 0 | M158: 0 | N158: 1 | O158: 0 | P158: -1 | Q158: 1 | R158: 0 | S158: 2 | T158: 0 | U158: 0 | V158: 1 | W158: 0 | X158: 0 | Y158: 7 | Z158: gb4065
A159: 400066 | B159: 聚宝盆 | C159: 获得模拟币上升{0}%。专门处理过，在藏宝图和肉鸽中会获得不同的代币。 | D159: 1 | E159: -1 | F159: icon_globalbuff59 | G159: 800113 | H159: 800192 | I159: 4066 | J159: 3 | K159: 30 | L159: 0 | M159: 0 | N159: 1 | O159: 0 | P159: -1 | Q159: 1 | R159: 0 | S159: 2 | T159: 0 | U159: 0 | V159: 1 | W159: 0 | X159: 0 | Y159: 7 | Z159: gb4066
A160: 400067 | B160: 精灵宝钻 | C160: 事件成功概率上升{0}% | D160: 1 | E160: -1 | F160: icon_globalbuff60 | G160: 800114 | H160: 800193 | I160: 4067 | J160: 3 | K160: 30 | L160: 0 | M160: 0 | N160: 1 | O160: 0 | P160: -1 | Q160: 1 | R160: 0 | S160: 2 | T160: 0 | U160: 0 | V160: 1 | W160: 0 | X160: 0 | Y160: 7 | Z160: gb4067
A161: 400068 | B161: 预言家石像 | C161: 出现高级buff概率上升{0}% | D161: 1 | E161: -1 | F161: icon_globalbuff61 | G161: 800115 | H161: 800194 | I161: 4068 | J161: 3 | K161: 30 | L161: 0 | M161: 0 | N161: 1 | O161: 0 | P161: -1 | Q161: 1 | R161: 0 | S161: 2 | T161: 0 | U161: 0 | V161: 1 | W161: 0 | X161: 0 | Y161: 7 | Z161: gb4068
A162: 400069 | B162: 不幸章鱼 | C162: 生命最大值降低{0}% | D162: 0 | E162: -1 | F162: icon_globalbuff62 | G162: 800116 | H162: 800195 | I162: 4069 | J162: 1 | K162: 5 | L162: 0 | M162: 0 | N162: 1 | O162: 0 | P162: -1 | Q162: 1 | R162: 0 | S162: 2 | T162: 0 | U162: 0 | V162: 0 | W162: 0 | X162: 0 | Y162: 8 | Z162: gb4069
A163: 400070 | B163: 恶臭榴莲 | C163: 全属性最终伤害降低{0}% | D163: 0 | E163: -1 | F163: icon_globalbuff63 | G163: 800117 | H163: 800196 | I163: 4070 | J163: 1 | K163: 5 | L163: 0 | M163: 0 | N163: 1 | O163: 0 | P163: -1 | Q163: 1 | R163: 0 | S163: 2 | T163: 0 | U163: 0 | V163: 0 | W163: 0 | X163: 0 | Y163: 8 | Z163: gb4070
A164: 400071 | B164: 噩兆之鸦 | C164: 每经过一个区域，减少相当于生命最大值{0}%的生命 | D164: 0 | E164: -1 | F164: icon_globalbuff64 | G164: 800118 | H164: 800197 | I164: 4071 | J164: 1 | K164: 3 | L164: 0 | M164: 0 | N164: 1 | O164: 0 | P164: -1 | Q164: 1 | R164: 0 | S164: 2 | T164: 0 | U164: 0 | V164: 0 | W164: 0 | X164: 0 | Y164: 8 | Z164: gb4071
A165: 400072 | B165: 催眠幽灵 | C165: 所有来源能量获取速度降低{0}% | D165: 0 | E165: -1 | F165: icon_globalbuff65 | G165: 800119 | H165: 800198 | I165: 4072 | J165: 1 | K165: 5 | L165: 0 | M165: 0 | N165: 1 | O165: 0 | P165: -1 | Q165: 1 | R165: 0 | S165: 2 | T165: 0 | U165: 0 | V165: 0 | W165: 0 | X165: 0 | Y165: 8 | Z165: gb4072
A166: 400073 | B166: 曼德拉草 | C166: 终极技能最终伤害降低{0}% | D166: 0 | E166: -1 | F166: icon_globalbuff66 | G166: 800120 | H166: 800199 | I166: 4073 | J166: 1 | K166: 10 | L166: 0 | M166: 0 | N166: 1 | O166: 0 | P166: -1 | Q166: 1 | R166: 0 | S166: 2 | T166: 0 | U166: 0 | V166: 0 | W166: 0 | X166: 0 | Y166: 8 | Z166: gb4073
A167: 400074 | B167: 蛛网 | C167: 普通攻击命中率降低{0}% | D167: 0 | E167: -1 | F167: icon_globalbuff67 | G167: 800121 | H167: 800200 | I167: 4074 | J167: 1 | K167: 15 | L167: 0 | M167: 0 | N167: 1 | O167: 0 | P167: -1 | Q167: 1 | R167: 0 | S167: 2 | T167: 0 | U167: 0 | V167: 0 | W167: 0 | X167: 0 | Y167: 8 | Z167: gb4074
A168: 400075 | B168: 猛毒蛇牙 | C168: 所有治疗效果降低{0}% | D168: 0 | E168: -1 | F168: icon_globalbuff68 | G168: 800122 | H168: 800201 | I168: 4075 | J168: 1 | K168: 20 | L168: 0 | M168: 0 | N168: 1 | O168: 0 | P168: -1 | Q168: 1 | R168: 0 | S168: 2 | T168: 0 | U168: 0 | V168: 0 | W168: 0 | X168: 0 | Y168: 8 | Z168: gb4075
A169: 400076 | B169: 痒痒花粉 | C169: 受到额外的环境伤害{0}% | D169: 0 | E169: -1 | F169: icon_globalbuff69 | G169: 800123 | H169: 800202 | I169: 4076 | J169: =IF(D169=1,3,IF(D169=2,2,(IF(D169=3,1,1)))) -> 1 | K169: 15 | L169: 0 | M169: 0 | N169: 1 | O169: 0 | P169: -1 | Q169: 1 | R169: 0 | S169: 2 | T169: 0 | U169: 0 | V169: 0 | W169: 0 | X169: 0 | Y169: 8 | Z169: gb4076
A170: 400077 | B170: 腐蚀之泉 | C170: 防御力降低{0}% | D170: 0 | E170: -1 | F170: icon_globalbuff70 | G170: 800124 | H170: 800203 | I170: 4077 | J170: 1 | K170: 15 | L170: 0 | M170: 0 | N170: 1 | O170: 0 | P170: -1 | Q170: 1 | R170: 0 | S170: 2 | T170: 0 | U170: 0 | V170: 0 | W170: 0 | X170: 0 | Y170: 8 | Z170: gb4077
A171: 400101 | B171: 战斗课题机制 | C171: buff栏位提升{0}个。 | D171: 0 | E171: -1 | G171: 800057 | H171: 800136 | I171: 4010 | J171: 1 | K171: 2 | L171: 0 | M171: 0 | N171: 1 | O171: 0 | P171: -1 | Q171: 2 | R171: 0 | S171: 2 | T171: 0 | U171: 0 | V171: 1 | W171: 0 | X171: 0 | Y171: 1 | Z171: gb4010
A172: 400102 | B172: 战斗课题机制 | C172: buff栏位提升{0}个。 | D172: 0 | E172: -1 | G172: 800057 | H172: 800136 | I172: 4010 | J172: 1 | K172: 4 | L172: 0 | M172: 0 | N172: 1 | O172: 0 | P172: -1 | Q172: 2 | R172: 0 | S172: 2 | T172: 0 | U172: 0 | V172: 1 | W172: 0 | X172: 0 | Y172: 1 | Z172: gb4010
A173: 400103 | B173: 战斗课题机制 | C173: buff栏位提升{0}个。 | D173: 0 | E173: -1 | G173: 800057 | H173: 800136 | I173: 4010 | J173: 1 | K173: 6 | L173: 0 | M173: 0 | N173: 1 | O173: 0 | P173: -1 | Q173: 2 | R173: 0 | S173: 2 | T173: 0 | U173: 0 | V173: 1 | W173: 0 | X173: 0 | Y173: 1 | Z173: gb4010
A174: 400104 | B174: 战斗课题机制 | C174: 开场时，可以选择{0}次特殊Buff。 | D174: 0 | E174: -1 | G174: 800046 | H174: 800125 | I174: 4001 | J174: 1 | K174: 2 | L174: 0 | M174: 0 | N174: 1 | O174: 0 | P174: -1 | Q174: 1 | R174: 0 | S174: 2 | T174: 0 | U174: 0 | V174: 1 | W174: 0 | X174: 0 | Y174: 1 | Z174: ="gb"&I174 -> gb4001
A175: 400105 | B175: 战斗课题机制 | C175: 怪物等级提升{0}，最高{1}。 | D175: 0 | E175: -1 | G175: 800049 | H175: 800128 | I175: 4004 | J175: 1 | K175: 5;100 | L175: 0 | M175: 0 | N175: 1 | O175: 0 | P175: -1 | Q175: 2 | R175: 0 | S175: 2 | T175: 0 | U175: 0 | V175: 1 | W175: 0 | X175: 0 | Y175: 1 | Z175: gb4004
A176: 400106 | B176: 战斗课题机制 | C176: 怪物等级提升{0}，最高{1}。 | D176: 0 | E176: -1 | G176: 800049 | H176: 800128 | I176: 4004 | J176: 1 | K176: 10;100 | L176: 0 | M176: 0 | N176: 1 | O176: 0 | P176: -1 | Q176: 2 | R176: 0 | S176: 2 | T176: 0 | U176: 0 | V176: 1 | W176: 0 | X176: 0 | Y176: 1 | Z176: gb4004
A177: 400107 | B177: 胜利之章（遗物本用） | C177: 委托战斗时，全体英雄造成的伤害增加{0}%，受到伤害下降{1}% | D177: 0 | E177: -1 | F177: icon_globalbuff71 | G177: 800214 | H177: 800215 | I177: 4078 | J177: 1 | K177: 25;50 | L177: 0 | M177: 0 | N177: 1 | O177: 0 | P177: -1 | Q177: 1 | R177: 0 | S177: 2 | T177: 0 | U177: 0 | V177: 0 | W177: 0 | X177: 1 | Y177: 8 | Z177: gb4078
B178: rogue科技 | C178: 救援仓：使矿工手环的持有上限增加{10}。 | D178: 4 | E178: -1 | F178: -1 | G178: 101476 | H178: 101477 | I178: 41001 | J178: 1 | K178: 10 | L178: 0 | M178: 0 | N178: 1 | O178: 0 | P178: -1 | Q178: 1 | R178: 0 | S178: 2 | T178: 0 | U178: 0 | V178: 1 | W178: 0 | X178: 0 | Y178: 9 | Z178: gb41001
B179: rogue科技 | C179: 救援仓：使矿工手环的持有上限增加{20}。 | D179: 4 | E179: -1 | F179: -1 | G179: 101476 | H179: 101477 | I179: 41001 | J179: 1 | K179: 20 | L179: 0 | M179: 0 | N179: 1 | O179: 0 | P179: -1 | Q179: 1 | R179: 0 | S179: 2 | T179: 0 | U179: 0 | V179: 1 | W179: 0 | X179: 0 | Y179: 9 | Z179: gb41001
B180: rogue科技 | C180: 救援仓：使矿工手环的持有上限增加{30}。 | D180: 4 | E180: -1 | F180: -1 | G180: 101476 | H180: 101477 | I180: 41001 | J180: 1 | K180: 30 | L180: 0 | M180: 0 | N180: 1 | O180: 0 | P180: -1 | Q180: 1 | R180: 0 | S180: 2 | T180: 0 | U180: 0 | V180: 1 | W180: 0 | X180: 0 | Y180: 9 | Z180: gb41001
B181: rogue科技 | C181: 紧急避险：前{0}次战斗失败，不会损失矿工手环。 | D181: 4 | E181: -1 | F181: -1 | G181: 101478 | H181: 101479 | I181: 41002 | J181: 1 | K181: 1 | L181: 0 | M181: 0 | N181: 1 | O181: 0 | P181: -1 | Q181: 1 | R181: 0 | S181: 2 | T181: 0 | U181: 0 | V181: 1 | W181: 0 | X181: 0 | Y181: 9 | Z181: gb41002
B182: rogue科技 | C182: 紧急避险：前{0}次战斗失败，不会损失矿工手环。 | D182: 4 | E182: -1 | F182: -1 | G182: 101478 | H182: 101479 | I182: 41002 | J182: 1 | K182: 2 | L182: 0 | M182: 0 | N182: 1 | O182: 0 | P182: -1 | Q182: 1 | R182: 0 | S182: 2 | T182: 0 | U182: 0 | V182: 1 | W182: 0 | X182: 0 | Y182: 9 | Z182: gb41002
B183: rogue科技 | C183: 紧急避险：前{0}次战斗失败，不会损失矿工手环。 | D183: 4 | E183: -1 | F183: -1 | G183: 101478 | H183: 101479 | I183: 41002 | J183: 1 | K183: 3 | L183: 0 | M183: 0 | N183: 1 | O183: 0 | P183: -1 | Q183: 1 | R183: 0 | S183: 2 | T183: 0 | U183: 0 | V183: 1 | W183: 0 | X183: 0 | Y183: 9 | Z183: gb41002
B184: rogue科技 | C184: 披荆斩棘：每个区域中，免疫{0}次环境伤害（荆棘、水坑等）。 | D184: 4 | E184: -1 | F184: -1 | G184: 101480 | H184: 101481 | I184: 41003 | J184: 1 | K184: 1 | L184: 0 | M184: 0 | N184: 1 | O184: 0 | P184: -1 | Q184: 1 | R184: 0 | S184: 2 | T184: 0 | U184: 0 | V184: 1 | W184: 0 | X184: 0 | Y184: 9 | Z184: gb41003
B185: rogue科技 | C185: 披荆斩棘：每个区域中，免疫{0}次环境伤害（荆棘、水坑等）。 | D185: 4 | E185: -1 | F185: -1 | G185: 101480 | H185: 101481 | I185: 41003 | J185: 1 | K185: 2 | L185: 0 | M185: 0 | N185: 1 | O185: 0 | P185: -1 | Q185: 1 | R185: 0 | S185: 2 | T185: 0 | U185: 0 | V185: 1 | W185: 0 | X185: 0 | Y185: 9 | Z185: gb41003
B186: rogue科技 | C186: 身经百战：rogue开始时，从{0}（buff池ID）中，选择{1}个buff。 | D186: 4 | E186: -1 | F186: -1 | G186: 101482 | H186: 101483 | I186: 41004 | J186: 1 | K186: 2;1 | L186: 0 | M186: 0 | N186: 1 | O186: 0 | P186: -1 | Q186: 1 | R186: 0 | S186: 2 | T186: 0 | U186: 0 | V186: 1 | W186: 0 | X186: 0 | Y186: 9 | Z186: gb41004
B187: rogue科技 | C187: 身经百战：rogue开始时，从{0}（buff池ID）中，选择{2}个buff。 | D187: 4 | E187: -1 | F187: -1 | G187: 101482 | H187: 101483 | I187: 41004 | J187: 1 | K187: 2;1 | L187: 0 | M187: 0 | N187: 1 | O187: 0 | P187: -1 | Q187: 1 | R187: 0 | S187: 2 | T187: 0 | U187: 0 | V187: 1 | W187: 0 | X187: 0 | Y187: 9 | Z187: gb41004
A188: 420001 | B188: 火龙血 | C188: 火系英雄，普攻有{0}%概率为敌人施加【爆裂】，并提升{1}%触发【爆裂】的伤害 | D188: 4 | E188: -1 | F188: icon_globalbuff32 | G188: 800070 | H188: 501299 | I188: 4201 | J188: =IF(D188=1,5,IF(D188=2,2,(IF(D188=3,3,1)))) -> 1 | K188: 20;100 | L188: 0 | M188: =CHOOSE(MAX(1,D188),3,5,5,7) -> 7 | N188: 1 | O188: 0 | P188: -1 | Q188: 1 | R188: 0 | S188: 2 | T188: 0 | U188: 0 | V188: 0 | W188: 0 | X188: 1 | Y188: 3 | Z188: gb4201
A189: 420002 | B189: 地狱喷火枪 | C189: 火系英雄，普攻有{0}%概率为敌人施加【焚烧】，并提升{1}%触发【焚烧】的伤害 | D189: 4 | E189: -1 | F189: icon_globalbuff33 | G189: 800071 | H189: 501300 | I189: 4202 | J189: =IF(D189=1,5,IF(D189=2,2,(IF(D189=3,3,1)))) -> 1 | K189: 20;100 | L189: 0 | M189: =CHOOSE(MAX(1,D189),3,5,5,7) -> 7 | N189: 1 | O189: 0 | P189: -1 | Q189: 1 | R189: 0 | S189: 2 | T189: 0 | U189: 0 | V189: 0 | W189: 0 | X189: 1 | Y189: 3 | Z189: gb4202
A190: 420003 | B190: 热毒果实 | C190: 火系英雄，秒伤提升{0}% | D190: 3 | E190: -1 | F190: icon_globalbuff13 | G190: 800072 | H190: 501301 | I190: 4025 | J190: 3 | K190: 30 | L190: 0 | M190: 5 | N190: 1 | O190: 0 | P190: -1 | Q190: 1 | R190: 0 | S190: 2 | T190: 0 | U190: 0 | V190: 0 | W190: 0 | X190: 1 | Y190: 3 | Z190: gb4025
A191: 420004 | B191: 滴血弱虫 | C191: 火系英雄，单次伤害量高于{0}%秒伤时，将无视敌人{1}%防御 | D191: 3 | E191: -1 | F191: icon_globalbuff14 | G191: 800073 | H191: 501302 | I191: 4204 | J191: 3 | K191: 300;30 | L191: 0 | M191: 5 | N191: 1 | O191: 0 | P191: -1 | Q191: 1 | R191: 0 | S191: 2 | T191: 0 | U191: 0 | V191: 0 | W191: 0 | X191: 1 | Y191: 3 | Z191: gb4204
A192: 420005 | B192: 猩红尾针 | C192: 火系英雄，触发【爆裂】【焚烧】的伤害提升{0}% | D192: 3 | E192: -1 | F192: icon_globalbuff15 | G192: 800074 | H192: 501304 | I192: 4206 | J192: 3 | K192: 50 | L192: 0 | M192: 5 | N192: 1 | O192: 0 | P192: -1 | Q192: 1 | R192: 0 | S192: 2 | T192: 0 | U192: 0 | V192: 0 | W192: 0 | X192: 1 | Y192: 3 | Z192: gb4206
A193: 420006 | B193: 红色能量饮料 | C193: 火系英雄，每次造成伤害时获得{0}点能量 | D193: 1 | E193: -1 | F193: icon_globalbuff34 | G193: 800075 | H193: 501303 | I193: 4205 | J193: 5 | K193: 3 | L193: 0 | M193: 3 | N193: 1 | O193: 0 | P193: -1 | Q193: 1 | R193: 0 | S193: 2 | T193: 0 | U193: 0 | V193: 0 | W193: 0 | X193: 1 | Y193: 3 | Z193: gb4205
A194: 420007 | B194: 红色闹钟 | C194: 火系英雄，造成的所有伤害被分为{0}段 | D194: 3 | E194: -1 | F194: icon_globalbuff35 | G194: 800076 | H194: 501308 | I194: 4210 | J194: 3 | K194: 2 | L194: 50 | M194: 5 | N194: 1 | O194: 0 | P194: -1 | Q194: 1 | R194: 0 | S194: 2 | T194: 0 | U194: 0 | V194: 0 | W194: 0 | X194: 1 | Y194: 3 | Z194: gb4210
A195: 420008 | B195: 红色腰带 | C195: 火系英雄，最大生命提升{0}% | D195: 1 | E195: -1 | F195: icon_globalbuff38 | G195: 800079 | H195: 501306 | I195: 4208 | J195: 5 | K195: 20 | L195: 0 | M195: 3 | N195: 1 | O195: 0 | P195: -1 | Q195: 1 | R195: 0 | S195: 2 | T195: 0 | U195: 0 | V195: 0 | W195: 0 | X195: 1 | Y195: 3 | Z195: gb4208
A196: 420009 | B196: 红色头巾 | C196: 火系英雄，每次技能的首段伤害提升{0}% | D196: 1 | E196: -1 | F196: icon_globalbuff37 | G196: 800078 | H196: 501307 | I196: 4209 | J196: 5 | K196: 50 | L196: 0 | M196: 3 | N196: 1 | O196: 0 | P196: -1 | Q196: 1 | R196: 0 | S196: 2 | T196: 0 | U196: 0 | V196: 0 | W196: 0 | X196: 1 | Y196: 3 | Z196: gb4209
A197: 420010 | B197: 红色急救箱 | C197: 火系英雄，受到的治疗量提升{0}% | D197: 1 | E197: -1 | F197: icon_globalbuff36 | G197: 800077 | H197: 501305 | I197: 4207 | J197: 5 | K197: 20 | L197: 0 | M197: 3 | N197: 1 | O197: 0 | P197: -1 | Q197: 1 | R197: 0 | S197: 2 | T197: 0 | U197: 0 | V197: 0 | W197: 0 | X197: 1 | Y197: 3 | Z197: gb4207
A198: 420011 | B198: 冰之镜 | C198: 冰系英雄，大招技能对敌人造成伤害时可【冻结】敌人，并将敌人余下的{0}%生命值转变为护盾值（每个敌人可触发一次） | D198: 4 | E198: -1 | F198: icon_globalbuff39 | G198: 800080 | H198: 501309 | I198: 4211 | J198: 1 | K198: 30 | L198: 0 | M198: 7 | N198: 1 | O198: 0 | P198: -1 | Q198: 1 | R198: 0 | S198: 2 | T198: 0 | U198: 0 | V198: 0 | W198: 0 | X198: 1 | Y198: 4 | Z198: gb4211
A199: 420012 | B199: 水晶匕首 | C199: 冰系英雄，护盾受到伤害时，有{0}%概率散落{1}枚【冰甲碎片】攻击目标敌人 | D199: 4 | E199: -1 | F199: icon_globalbuff40 | G199: 800081 | H199: 501310 | I199: 4212 | J199: 1 | K199: 75;2 | L199: 0 | M199: 7 | N199: 1 | O199: 0 | P199: -1 | Q199: 1 | R199: 0 | S199: 2 | T199: 0 | U199: 0 | V199: 0 | W199: 0 | X199: 1 | Y199: 4 | Z199: gb4212
A200: 420013 | B200: 冰凛果实 | C200: 冰系英雄，秒伤提升{0}% | D200: 3 | E200: -1 | F200: icon_globalbuff16 | G200: 800082 | H200: 501311 | I200: 4035 | J200: 3 | K200: 30 | L200: 0 | M200: 5 | N200: 1 | O200: 0 | P200: -1 | Q200: 1 | R200: 0 | S200: 2 | T200: 0 | U200: 0 | V200: 0 | W200: 0 | X200: 1 | Y200: 4 | Z200: gb4035
A201: 420014 | B201: 僵死弱虫 | C201: 冰系英雄，对具有护盾的敌人造成伤害提升{0}% | D201: 3 | E201: -1 | F201: icon_globalbuff17 | G201: 800083 | H201: 501312 | I201: 4214 | J201: 3 | K201: 50 | L201: 0 | M201: 5 | N201: 1 | O201: 0 | P201: -1 | Q201: 1 | R201: 0 | S201: 2 | T201: 0 | U201: 0 | V201: 0 | W201: 0 | X201: 1 | Y201: 4 | Z201: gb4214
... 104 more rows

Sheet BuffPoolConfig
A1: ID | C1: BuffsID | D1: BuffType | E1: CostItem | F1: PoolType | G1: CostCount | H1: BuffProb | I1: MaxCount | J1: Chance
A2: int | C2: int[] | D2: int[] | E2: int | F2: int | G2: int | H2: int | I2: int | J2: int[]
A4: ID | B4: buff池名 | C4: 包括的BUFFid | D4: buff池类型： 1.课题机制 2.深渊 3.火 4.冰 5.雷 6.初始课题 7.冒险 8.debuff 97.普通 98.高级 99.传说 100.主线 200.藏宝图 | E4: 单价道具 | F4: 类型 11=肉鸽 10=藏宝图 1=主线剧情关卡 | G4: 单价 | H4: 权重 | I4: 最大数量 （商店里刷出时最大的级数） | J4: 额外数量概率 1000=100%
A5: 1 | B5: 普通深渊 | C5: =_xlfn.TEXTJOIN(";",TRUE,L5:T5) -> 400013;400017;400018;400019;400020;400021 | D5: 2;97 | E5: 108027 | F5: 11 | G5: 30 | H5: 1000 | I5: 1 | J5: 0 | L5: 400013 | M5: 400017 | N5: 400018 | O5: 400019 | P5: 400020 | Q5: 400021
A6: 2 | B6: 高级深渊 | C6: 400014;400015;400016;400022 | D6: 2;98 | E6: 108027 | F6: 11 | G6: 60 | H6: 500 | I6: 1 | J6: 0 | L6: 400014 | M6: 400015 | N6: 400016 | O6: 400022
A7: 3 | B7: 传说深渊 | C7: 400011;400012 | D7: 2;99 | E7: 108027 | F7: 11 | G7: 100 | H7: 50 | I7: 1 | J7: 0 | L7: 400011 | M7: 400012
A8: 4 | B8: 普通火焰 | C8: 420006;420008;420009;420010 | D8: 3;97 | E8: 108027 | F8: 11 | G8: 30 | H8: 1000 | I8: 1 | J8: 0 | K8: 420003;420004;420005;420008 | L8: 420006 | M8: 420008 | N8: 420009 | O8: 420010
A9: 5 | B9: 高级火焰 | C9: 420003;420004;420005;420007 | D9: 3;98 | E9: 108027 | F9: 11 | G9: 60 | H9: 500 | I9: 1 | J9: 0 | K9: 420006;420007;420009;420010 | L9: 420003 | M9: 420004 | N9: 420005 | O9: 420007
A10: 6 | B10: 传说火焰 | C10: 420001;420002;400054 | D10: 3;99 | E10: 108027 | F10: 11 | G10: 100 | H10: 50 | I10: 1 | J10: 0 | K10: 420001;420002 | L10: 420001 | M10: 420002 | N10: 400054
A11: 7 | B11: 普通寒冰 | C11: 420016;420018;420019;420020 | D11: 4;97 | E11: 108027 | F11: 11 | G11: 30 | H11: 1000 | I11: 1 | J11: 0 | K11: 420013;420014;420015;420018 | L11: 420016 | M11: 420018 | N11: 420019 | O11: 420020
A12: 8 | B12: 高级寒冰 | C12: 420013;420014;420015;420017 | D12: 4;98 | E12: 108027 | F12: 11 | G12: 60 | H12: 500 | I12: 1 | J12: 0 | K12: 420016;420017;420019;420020 | L12: 420013 | M12: 420014 | N12: 420015 | O12: 420017
A13: 9 | B13: 传说寒冰 | C13: 420011;420012;400055 | D13: 4;99 | E13: 108027 | F13: 11 | G13: 100 | H13: 50 | I13: 1 | J13: 0 | K13: 420011;420012 | L13: 420011 | M13: 420012 | N13: 400055
A14: 10 | B14: 普通雷电 | C14: 420026;420028;420029;420030 | D14: 5;97 | E14: 108027 | F14: 11 | G14: 30 | H14: 1000 | I14: 1 | J14: 0 | K14: 420023;420024;420025;420028 | L14: 420026 | M14: 420028 | N14: 420029 | O14: 420030
A15: 11 | B15: 高级雷电 | C15: 420023;420024;420025;420027 | D15: 5;98 | E15: 108027 | F15: 11 | G15: 60 | H15: 500 | I15: 1 | J15: 0 | K15: 420026;420027;420029;420030 | L15: 420023 | M15: 420024 | N15: 420025 | O15: 420027
A16: 12 | B16: 传说雷电 | C16: 420021;420022;400056 | D16: 5;99 | E16: 108027 | F16: 11 | G16: 100 | H16: 50 | I16: 1 | J16: 0 | L16: 420021 | M16: 420022 | N16: 400056
A17: 13 | B17: 普通冒险 | C17: 400064;400066;400067;400068 | D17: 7;97 | E17: 108027 | F17: 11 | G17: 30 | H17: 1000 | I17: 1 | J17: 0
A18: 14 | B18: 高级冒险 | C18: 400061;400062;400063 | D18: 7;98 | E18: 108027 | F18: 11 | G18: 60 | H18: 500 | I18: 1 | J18: 0
A19: 15 | B19: 传说冒险 | C19: 400060 | D19: 7;99 | E19: 108027 | F19: 11 | G19: 100 | H19: 50 | I19: 1 | J19: 0
A20: 16 | B20: 诅咒 | C20: 400069;400070;400071;400072;400073;400074;400075;400076;400077 | D20: 8 | E20: 108027 | F20: 11 | G20: 30 | H20: 500 | I20: 1 | J20: 0
A21: 17 | B21: 战斗课题初始buff | C21: 400054;400055;400056;400057 | D21: 6 | E21: -1 | F21: 11 | G21: -1 | H21: 500 | I21: 1 | J21: 0
A22: 101 | B22: 2-4BUFF池 | C22: 400015;400032;400043;400052 | D22: 100 | E22: -1 | F22: 11 | G22: -1 | H22: 100 | I22: 1 | J22: 0
A23: 102 | B23: 主线小型地图6第1个BUFF商人 | C23: 420001;420011;420021 | D23: 100 | E23: 108170 | F23: 1 | G23: 1 | H23: 100 | I23: 1 | J23: 0
A24: 103 | B24: 主线小型地图6第2个BUFF商人 | C24: 420002;420012;420022 | D24: 100 | E24: 108170 | F24: 1 | G24: 1 | H24: 100 | I24: 1 | J24: 0
A25: 301 | B25: 藏宝图警戒度1怪物加强 | C25: 300002 | D25: 7 | E25: 108040 | F25: 10 | G25: 150 | H25: 50 | I25: 1 | J25: 0
A26: 302 | B26: 藏宝图警戒度2怪物加强 | C26: 300003 | D26: 7 | E26: 108040 | F26: 10 | G26: 150 | H26: 50 | I26: 1 | J26: 0
A27: 303 | B27: 藏宝图警戒度3怪物加强 | C27: 300004 | D27: 7 | E27: 108040 | F27: 10 | G27: 150 | H27: 50 | I27: 1 | J27: 0
A28: 311 | B28: 藏宝图-主线1星-默认玩法-怪物额外掉落-森林 | C28: 302001 | D28: 7 | E28: 108040 | F28: 10 | G28: 150 | H28: 50 | I28: 1 | J28: 0
A29: 312 | B29: 藏宝图-主线1星-默认玩法-怪物额外掉落-矿山 | C29: 302002 | D29: 7 | E29: 108040 | F29: 10 | G29: 150 | H29: 50 | I29: 1 | J29: 0
A30: 313 | B30: 藏宝图-主线1星-默认玩法-怪物额外掉落-地下 | C30: 302003 | D30: 7 | E30: 108040 | F30: 10 | G30: 150 | H30: 50 | I30: 1 | J30: 0
A31: 314 | B31: 藏宝图-日常1星-默认玩法-怪物额外掉落-森林 | C31: 302004 | D31: 7 | E31: 108040 | F31: 10 | G31: 150 | H31: 50 | I31: 1 | J31: 0
A32: 315 | B32: 藏宝图-日常1星-默认玩法-怪物额外掉落-矿山 | C32: 302005 | D32: 7 | E32: 108040 | F32: 10 | G32: 150 | H32: 50 | I32: 1 | J32: 0
A33: 316 | B33: 藏宝图-日常1星-默认玩法-怪物额外掉落-地下 | C33: 302006 | D33: 7 | E33: 108040 | F33: 10 | G33: 150 | H33: 50 | I33: 1 | J33: 0
A34: 317 | B34: 藏宝图-日常2星-默认玩法-怪物额外掉落-森林 | C34: 302007 | D34: 7 | E34: 108040 | F34: 10 | G34: 150 | H34: 50 | I34: 1 | J34: 0
A35: 318 | B35: 藏宝图-日常2星-默认玩法-怪物额外掉落-矿山 | C35: 302008 | D35: 7 | E35: 108040 | F35: 10 | G35: 150 | H35: 50 | I35: 1 | J35: 0
A36: 319 | B36: 藏宝图-主线2星-默认玩法-怪物额外掉落-森林 | C36: 302009 | D36: 7 | E36: 108040 | F36: 10 | G36: 150 | H36: 50 | I36: 1 | J36: 0
A37: 320 | B37: 藏宝图-日常2星-默认玩法-怪物额外掉落-地下 | C37: 302010 | D37: 7 | E37: 108040 | F37: 10 | G37: 150 | H37: 50 | I37: 1 | J37: 0
A38: 321 | B38: 藏宝图BUFF池，普通火 | C38: 420003;420004;420005;420008 | D38: 3;97;200 | E38: 108040 | F38: 10 | G38: 30 | H38: 1000 | I38: 1 | J38: 0
A39: 322 | B39: 藏宝图BUFF池，高级火 | C39: 420006;420007;420009;420010 | D39: 3;98;200 | E39: 108040 | F39: 10 | G39: 60 | H39: 500 | I39: 1 | J39: 0
A40: 323 | B40: 藏宝图BUFF池，普通水 | C40: 420013;420014;420015;420018 | D40: 4;97;200 | E40: 108040 | F40: 10 | G40: 30 | H40: 1000 | I40: 1 | J40: 0
A41: 324 | B41: 藏宝图BUFF池，高级水 | C41: 420016;420017;420019;420020 | D41: 4;98;200 | E41: 108040 | F41: 10 | G41: 60 | H41: 500 | I41: 1 | J41: 0
A42: 325 | B42: 藏宝图BUFF池，普通电 | C42: 420023;420024;420025;420028 | D42: 5;97;200 | E42: 108040 | F42: 10 | G42: 30 | H42: 1000 | I42: 1 | J42: 0
A43: 326 | B43: 藏宝图BUFF池，高级电 | C43: 420026;420027;420029;420030 | D43: 5;98;200 | E43: 108040 | F43: 10 | G43: 60 | H43: 500 | I43: 1 | J43: 0
A44: 331 | B44: 普通火焰-藏宝图单一系商人用 | C44: 420003;420004;420005;420008 | D44: 3;97;200 | E44: 108040 | F44: 10 | G44: 30 | H44: 1000 | I44: 1 | J44: 0
A45: 332 | B45: 高级火焰-藏宝图单一系商人用 | C45: 420006;420007;420009;420010 | D45: 3;98;200 | E45: 108040 | F45: 10 | G45: 50 | H45: 500 | I45: 1 | J45: 0
A46: 333 | B46: 传说火焰-藏宝图单一系商人用 | C46: 420001;420002 | D46: 3;99;200 | E46: 108040 | F46: 10 | G46: 100 | H46: 200 | I46: 1 | J46: 0
A47: 334 | B47: 普通寒冰-藏宝图单一系商人用 | C47: 420013;420014;420015;420018 | D47: 4;97;200 | E47: 108040 | F47: 10 | G47: 30 | H47: 1000 | I47: 1 | J47: 0
A48: 335 | B48: 高级寒冰-藏宝图单一系商人用 | C48: 420016;420017;420019;420020 | D48: 4;98;200 | E48: 108040 | F48: 10 | G48: 50 | H48: 500 | I48: 1 | J48: 0
A49: 336 | B49: 传说寒冰-藏宝图单一系商人用 | C49: 420011;420012 | D49: 4;99;200 | E49: 108040 | F49: 10 | G49: 100 | H49: 200 | I49: 1 | J49: 0
A50: 337 | B50: 普通雷电-藏宝图单一系商人用 | C50: 420023;420024;420025;420028 | D50: 5;97;200 | E50: 108040 | F50: 10 | G50: 30 | H50: 1000 | I50: 1 | J50: 0
A51: 338 | B51: 高级雷电-藏宝图单一系商人用 | C51: 420026;420027;420029;420030 | D51: 5;98;200 | E51: 108040 | F51: 10 | G51: 50 | H51: 500 | I51: 1 | J51: 0
A52: 339 | B52: 传说雷电-藏宝图单一系商人用 | C52: 420021;420022 | D52: 5;99;200 | E52: 108040 | F52: 10 | G52: 100 | H52: 200 | I52: 1 | J52: 0
A53: 404 | B53: 普通火焰(rogue赛季用） | C53: =_xlfn.TEXTJOIN(";",TRUE,L53:T53) -> 430006;430008;430009;430010 | D53: 3;97 | E53: 108027 | F53: 11 | G53: 30 | H53: 1000 | I53: 1 | J53: 0 | L53: 430006 | M53: 430008 | N53: 430009 | O53: 430010
A54: 405 | B54: 高级火焰(rogue赛季用） | C54: =_xlfn.TEXTJOIN(";",TRUE,L54:T54) -> 430003;430004;430005;430007 | D54: 3;98 | E54: 108027 | F54: 11 | G54: 60 | H54: 500 | I54: 1 | J54: 0 | L54: 430003 | M54: 430004 | N54: 430005 | O54: 430007
A55: 406 | B55: 传说火焰(rogue赛季用） | C55: 430001;400054 | D55: 3;99 | E55: 108027 | F55: 11 | G55: 100 | H55: 50 | I55: 1 | J55: 0 | L55: 430001 | M55: 400054
A56: 407 | B56: 普通寒冰(rogue赛季用） | C56: 430016;430018;430019;430020 | D56: 4;97 | E56: 108027 | F56: 11 | G56: 30 | H56: 1000 | I56: 1 | J56: 0 | L56: 430016 | M56: 430018 | N56: 430019 | O56: 430020
A57: 408 | B57: 高级寒冰(rogue赛季用） | C57: 430013;430014;430015;430017 | D57: 4;98 | E57: 108027 | F57: 11 | G57: 60 | H57: 500 | I57: 1 | J57: 0 | L57: 430013 | M57: 430014 | N57: 430015 | O57: 430017
A58: 409 | B58: 传说寒冰(rogue赛季用） | C58: 430011;400055 | D58: 4;99 | E58: 108027 | F58: 11 | G58: 100 | H58: 50 | I58: 1 | J58: 0 | L58: 430011 | M58: 400055
A59: 410 | B59: 普通雷电(rogue赛季用） | C59: 430026;430028;430029;430030 | D59: 5;97 | E59: 108027 | F59: 11 | G59: 30 | H59: 1000 | I59: 1 | J59: 0 | L59: 430026 | M59: 430028 | N59: 430029 | O59: 430030
A60: 411 | B60: 高级雷电(rogue赛季用） | C60: 430023;430024;430025;430027 | D60: 5;98 | E60: 108027 | F60: 11 | G60: 60 | H60: 500 | I60: 1 | J60: 0 | L60: 430023 | M60: 430024 | N60: 430025 | O60: 430027
A61: 412 | B61: 传说雷电(rogue赛季用） | C61: 430022;400056 | D61: 5;99 | E61: 108027 | F61: 11 | G61: 100 | H61: 50 | I61: 1 | J61: 0 | L61: 430022 | M61: 400056
A62: 401 | B62: 矿工手环商品（rogue赛季用） | C62: 430002;430012;430021 | D62: 2;99 | E62: -1 | F62: 11 | G62: -1 | H62: 50 | I62: 1 | J62: 0 | L62: 430002 | M62: 430012 | N62: 430021

Sheet buff组说明
A1: 类型ID（对应的脚本名） | B1: 类型名 | C1: 效果说明
A2: 1001 | B2: 弱化 | C2: 秒伤降低5%*层数
A3: 1002 | B3: 虚弱 | C3: 最终伤害降低25%
A4: 1003 | B4: 撕裂/破甲 | C4: 防御力降低5%*层数
A5: 1004 | B5: 生命易伤 | C5: 生命受到伤害增加25%
A6: 1005 | B6: 恢复诅咒 | C6: 受治疗效果降低10%*层数（吸血除外）
A7: 1006 | B7: 寒冷 | C7: 闪避降低10%*层数，移动速度降低5%*层数
A8: 1007 | B8: 冰冻 | C8: 冻成冰块，无法闪避
A9: 1008 | B9: 感电 | C9: 护盾受到伤害+5%*层数
A10: 1009 | B10: 超载 | C10: 护盾立即破裂，且无法恢复
A11: 1010 | B11: 致盲 | C11: 命中降低50%
A12: 1011 | B12: 迟疑 | C12: 攻速降低30%
A13: 1012 | B13: 焦躁 | C13: 暴击几率下降50%
A14: 1013 | B14: 超重 | C14: 无法堆叠
A15: 1014 | B15: 沉默 | C15: 无法使用大招
A16: 1015 | B16: 减速 | C16: 移动速度减少10% * 层数
A17: 1016 | B17: 标记 | C17: 闪避降低50%
A18: 1017 | B18: 点燃 | C18: 每秒受到施加者中秒伤最高的300%秒伤 * 层数的伤害
A20: 1019 | B20: 眩晕 | C20: 无法移动，无法攻击，无法释放技能
A21: 1020 | B21: 禁锢 | C21: 无法移动
A22: 1021 | B22: 充能禁止 | C22: 期间大招无法充能
A23: 1022 | B23: 爆裂 | C23: 立即受到施加者中秒伤最高的300%秒伤的伤害，并对周围2m的敌人进行一次前面伤害30%的aoe伤害，同时对命中的没有护盾保护的敌人的敌人叠加一层“点燃”5s | E23: 点燃max + 1后触发，点燃buff消除
A24: 1023 | B24: 压制 | C24: 压制，不能不任何事
A26: 2001 | B26: 英雄秒伤强化 | C26: 伤害增加5%*层数
A27: 2002 | B27: 最终伤害强化 | C27: 最终伤害增加25%
A28: 2003 | B28: 防御强化 | C28: 防御力强化5%*层数
A29: 2004 | B29: 免伤 | C29: 生命/护盾受到伤害减少20%
A30: 2005 | B30: 生命免伤 | C30: 生命受到伤害减少25%
A31: 2006 | B31: 护盾免伤 | C31: 护盾受到伤害减少25%
A32: 2007 | B32: 祝福 | C32: 受治疗效果增加10%*层数（吸血不受影响）
A33: 2008 | B33: 无敌 | C33: 免疫控制，免疫伤害
A34: 2009 | B34: 霸体 | C34: 期间免疫控制，免疫debuff
A35: 2010 | B35: 狂暴 | C35: 攻速提升10%*层数（近战和远程）
A36: 2011 | B36: 近战狂暴 | C36: 近战攻速提升10%*层数
A37: 2012 | B37: 暴击强化 | C37: 暴击率提升10%*层数
A38: 2013 | B38: 嘲讽 | C38: 被敌人优先攻击
A39: 2014 | B39: 闪避强化 | C39: 闪避提升30%
A40: 2015 | B40: 吸血 | C40: 吸血提升30%
A41: 2016 | B41: 生命恢复 | C41: 每秒生命恢复1%*层数（这个恢复最高限制为施加者秒伤的500%）
A42: 2017 | B42: 护盾充能 | C42: 每秒护盾恢复2%*层数（这个恢复最高限制为施加者秒伤的500%）
A43: 2018 | B43: 不能被选取 | C43: 不能被选取，无法被敌人作为目标选取到
A44: 2019 | B44: 连击 | C44: 下一次释放小技能时，10% * 层数的概率再释放一次 （这个buff一直持续到下次释放小技能，释放后buff也消失）
A46: 3001 | C46: 藏宝图默认玩法中怪物的额外掉落
B52: 备注：0915删除了藏宝图中的冒险BUFF

Sheet 模拟训练
A2: 幽光甲虫 | B2: 【传奇】战斗开始时，所有英雄和神器处于满能量状态。生命上限{0}%。 | C2: 战斗结束时，全体恢复{0}%生命
A3: 人形果实 | B3: 【传奇】受到致命伤害后，可以满血满能量复活，每场战斗仅限1次。秒伤{0}%。 | C3: 战斗开始时，全队获得{0}%能量
A4: 梦幻果实 | B4: 小技能技能冷却恢复速度{0}%。生命上限{1}% | C4: 跌落恢复提升{0}%
A5: 将破之蛹 | B5: 击败敌人时，小技能恢复时间{0}秒。生命上限{1}%。 | C5: 效果命中提升{0}%
A6: 五彩尖刺 | B6: 对精英和BOSS的伤害+{0}%。生命上限{1}%。 | C6: 治疗职责英雄治疗暴击率提升{0}%
A7: 会长语录 | B7: 处于堆叠状态时，秒伤每秒提升{0}%，最大{1}%。生命上限{2}%。 | C7: 辅助职责英雄释放终极技能后，立即恢复{0}%能量
A8: 磨刀石 | B8: 能量回复提升{0}%。生命上限{1}%。 | C8: 前排免伤
A9: 放电怪鱼 | B9: 堆叠后{0}秒内，免疫控制。秒伤{1}% | C9: 前排坦伤
A10: 异种史莱姆 | B10: 跌落抗性提升{0}%。秒伤{1}% | C10: 全体生命
A11: 吸血恶蝇 | B11: 击败敌人时，回复{0}%生命。秒伤{1}% | C11: 全体能量恢复速度&小技能恢复
A12: 醒神嫩芽 | B12: 效果命中提升{0}。秒伤{1}% | C12: 后排暴击率&暴击伤害
A13: 呼吸水母 | B13: 对敌方施加的效果持续时间增加{0}%。秒伤{1}%。 | C13: 后排防御穿透提升
A15: 火龙血 | B15: 【传奇】普通攻击有{0}%概率可以激活【焚烧】和【爆裂】效果。 | C15: 火系英雄，普攻有{0}%概率为敌人施加【爆裂】 | E15: 爆裂
A16: 地狱喷火枪 | B16: 【传奇】【焚烧】或【爆裂】的持续时间延长{0}秒 | C16: 火系英雄，普攻有{0}%概率为敌人施加【焚烧】 | F16: 焚烧
A17: 热毒果实 | B17: 火属性英雄秒伤+{0}% | C17: 火系英雄，秒伤提升{0}% | D17: 通用
A18: 滴血弱虫 | B18: 减益伤害提升{0}%。 | C18: 火系英雄，单次伤害量高于{0}%秒伤时，将无视敌人{1}%防御 | E18: 爆裂
A19: 猩红尾针 | B19: 敌人身上每有一个减益，受到伤害提升{0}% | C19: 火系英雄，每次造成伤害时获得{1}点能量 | F19: 焚烧
A20: 红色能量饮料 | B20: 普攻有{0}%概率为敌人附加【燃烧】效果。 | C20: 火系英雄，减益伤害提升{0}% | D20: 通用
A21: 红色闹钟 | B21: 敌方效果抗性降低{0}% | C21: 火系英雄，受到的治疗量提升{0}% | D21: 通用
A22: 红色急救箱 | B22: 每个减益效果会导致敌人秒伤和恢复能力降低{0}% | C22: 火系英雄，最大生命提升{0}% | D22: 通用
A23: 红色头巾 | B23: 技能吸血提升{0}%。 | C23: 火系英雄，每次技能对敌人只会受到一次伤害，但技能伤害提升{300}% | E23: 爆裂
A24: 红色腰带 | B24: 每个死于【燃烧】状态的敌人，恢复我方全体{0}点能量。 | C24: 火系英雄，造成的所有伤害被分为两段 | F24: 焚烧
A25: 冰之镜 | B25: 【传奇】对敌人造成的伤害{0}%转化为护盾 | C25: 冰系英雄，大招技能对敌人造成伤害时可【冻结】敌人，并将敌人余下的{10}%生命值转变为护盾值（每个敌人可触发一次） | E25: 冻结
A26: 水晶匕首 | B26: 【传奇】对【寒冰】状态的敌人，伤害提升{0}%。 | C26: 冰系英雄，护盾受到伤害时，有{30}%概率散落{1}枚【冰甲碎片】攻击目标敌人 | F26: 破甲
A27: 冰凛果实 | B27: 冰属性英雄秒伤+{0}% | C27: 冰系英雄，秒伤提升{0}% | D27: 通用
A28: 僵死弱虫 | B28: 开始战斗时，获得{0}%生命的护盾 | C28: 冰系英雄，对具有护盾的敌人造成伤害提升{100}% | E28: 冻结
A29: 苍蓝尾针 | B29: 护盾反弹{0}%伤害。 | C29: 冰系英雄，护盾受到伤害量增加{0}%，但可反弹{1}%真实伤害 | F29: 破甲
A30: 蓝色能量饮料 | B30: 拥有护盾时，伤害减免{0}%。 | C30: 冰系英雄，在护盾保护下受到伤害时击退敌人1格 | D30: 通用
A31: 蓝色闹钟 | B31: 普攻有{0}%概率为敌人附加【寒冰】效果。 | C31: 冰系英雄，获得的护盾量提升{0}% | D31: 通用
A32: 蓝色头巾 | B32: 寒冷的减速效果提升{0}% | C32: 冰系英雄，最大生命提升{0}% | D32: 通用
A33: 蓝色腰带 | B33: 寒冰状态的敌人，被击退距离提升{0}% | C33: 冰系英雄，对受到控制效果的敌人造成伤害时，获得这个伤害量{0}%的护盾 | E33: 冻结
A34: 蓝色急救箱 | B34: 对来自【寒冰】状态的敌人的攻击，闪避提升{0}% | C34: 冰系英雄，使用技能时消耗自身{20}%护盾恢复等量生命 | F34: 破甲
A35: 蓝色拳套 | B35: 对【寒冰】影响下的敌人造成伤害时有{0}%概率【冻结】敌人
A36: 电击棒 | B36: 【传奇】普通攻击命中时，对所有敌人造成{0}%的秒伤伤害，每1s只能发动一次。(每个英雄独立计算) | C36: 电系英雄，能量获得量减少{50}%，但能量充满后普攻有{20}%概率触发【连锁闪电】 | E36: 普攻
A37: 能量饮料 | B37: 【传奇】【感电】有{0}%概率不被消耗 | C37: 电系英雄，攻速减少{50}%，根据技能伤害提升{30}%*拥有的【感电】层数 | F37: 技伤
A38: 触电果实 | B38: 雷属性英雄秒伤+{1}% | C38: 电系英雄，秒伤提升{0}% | D38: 通用
A39: 躁动弱虫 | B39: 每拥有一种增益状态，获得{0}%减伤。 | C39: 电系英雄，攻速提升{0}% | E39: 普攻
A40: 闪耀尾针 | B40: 每次普通攻击，有{0}%概率恢复{1}能量。 | C40: 电系英雄，使用大招后获得{0}%的能量 | F40: 技伤
A41: 黄色能量饮料 | B41: 每次使用小招，有{0}%概率获得【增伤】 | C41: 电系英雄，使用小技能时额外获得2层【感电】 | D41: 通用
A42: 黄色闹钟 | B42: 每波战斗开始时,所有敌人的防御力降低{0}%，持续{1}s | C42: 电系英雄，受到的治疗量提升{0}% | D42: 通用
A43: 黄色腰带 | B43: 释放连锁闪电时，有{0}%几率驱散敌方一种增益效果。 | C43: 电系英雄，最大生命提升{0}% | D43: 通用
A44: 黄色急救箱 | B44: 释放连锁闪电时，有{0}%概率获得【吸血】。 | C44: 电系英雄，技能吸血{30}% | F44: 技伤
A45: 黄色头巾 | B45: 释放连锁闪电时，有{0}%概率获得【暴击】。 | C45: 电系英雄，普攻的暴击率提升{30}% | E45: 普攻
A46: 火纹徽章 | B46: 烈焰：火系buff出现概率提升{0}%。
A47: 冰霜徽章 | B47: 寒冰：冰系buff出现概率提升{0}%。
A48: 雷鸣徽章 | B48: 雷电：电系buff出现概率提升{0}%。
A49: 多彩徽章 | B49: 深渊：深渊buff出现概率提升{0}%。

Sheet BUFF池子备份
A1: ID | C1: BuffsID | D1: BuffType | E1: CostItem | F1: CostCount | G1: BuffProb | H1: MaxCount | I1: Chance
A2: int | C2: int[] | D2: int[] | E2: int | F2: int | G2: int | H2: int | I2: int[]
A4: ID | B4: buff池名 | C4: 包括的BUFFid | D4: buff池类型： 1.课题机制 2.深渊 3.火 4.冰 5.雷 6.初始课题 7.冒险 8.debuff 97.普通 98.高级 99.传说 100.主线 200.藏宝图 | E4: 单价道具 | F4: 单价ID | G4: 权重 | H4: 最大数量 | I4: 额外数量概率 1000=100%
A5: 1 | B5: 普通深渊 | C5: 400013;400015;400017;400020;400021 | D5: 2;97 | E5: 108027 | F5: 30 | G5: 1000 | H5: 1 | I5: 0
A6: 2 | B6: 高级深渊 | C6: 400014;400016;400018;400019;400022 | D6: 2;98 | E6: 108027 | F6: 60 | G6: 500 | H6: 1 | I6: 0
A7: 3 | B7: 传说深渊 | C7: 400011;400012 | D7: 2;99 | E7: 108027 | F7: 150 | G7: 50 | H7: 1 | I7: 0
A8: 4 | B8: 普通火焰 | C8: 400025;400026;400029;400031 | D8: 3;97 | E8: 108027 | F8: 30 | G8: 1000 | H8: 1 | I8: 0
A9: 5 | B9: 高级火焰 | C9: 400027;400028;400030;400032 | D9: 3;98 | E9: 108027 | F9: 60 | G9: 500 | H9: 1 | I9: 0
A10: 6 | B10: 传说火焰 | C10: 400023;400024 | D10: 3;99 | E10: 108027 | F10: 150 | G10: 50 | H10: 1 | I10: 0
A11: 7 | B11: 普通寒冰 | C11: 400035;400036;400038;400040 | D11: 4;97 | E11: 108027 | F11: 30 | G11: 1000 | H11: 1 | I11: 0
A12: 8 | B12: 高级寒冰 | C12: 400037;400039;400041;400042;400043 | D12: 4;98 | E12: 108027 | F12: 60 | G12: 500 | H12: 1 | I12: 0
A13: 9 | B13: 传说寒冰 | C13: 400033;400034 | D13: 4;99 | E13: 108027 | F13: 150 | G13: 50 | H13: 1 | I13: 0
A14: 10 | B14: 普通雷电 | C14: 400046;400047;400048;400051 | D14: 5;97 | E14: 108027 | F14: 30 | G14: 1000 | H14: 1 | I14: 0
A15: 11 | B15: 高级雷电 | C15: 400049;400050;400052;400053 | D15: 5;98 | E15: 108027 | F15: 60 | G15: 500 | H15: 1 | I15: 0
A16: 12 | B16: 传说雷电 | C16: 400044;400045 | D16: 5;99 | E16: 108027 | F16: 150 | G16: 50 | H16: 1 | I16: 0
A17: 13 | B17: 普通冒险 | C17: 400064;400065;400066;400067;400068 | D17: 7;97 | E17: 108027 | F17: 30 | G17: 1000 | H17: 1 | I17: 0
A18: 14 | B18: 高级冒险 | C18: 400061;400062;400063 | D18: 7;98 | E18: 108027 | F18: 60 | G18: 500 | H18: 1 | I18: 0
A19: 15 | B19: 传说冒险 | C19: 400060 | D19: 7;99 | E19: 108027 | F19: 150 | G19: 50 | H19: 1 | I19: 0
A20: 16 | B20: 诅咒 | C20: 400069;400070;400071;400072;400073;400074;400075;400076;400077 | D20: 8 | E20: 108027 | F20: 30 | G20: 500 | H20: 1 | I20: 0
A21: 17 | B21: 战斗课题初始buff | C21: 400054;400055;400056;400057 | D21: 6 | E21: -1 | F21: -1 | G21: 500 | H21: 1 | I21: 0
A22: 101 | B22: 2-4BUFF池 | C22: 400015;400032;400043;400052 | D22: 100 | E22: -1 | F22: -1 | G22: 100 | H22: 1 | I22: 0
A23: 201 | B23: 普通深渊(藏宝图） | C23: 400013;400015;400017;400020;400021 | D23: 2;97 | E23: 108027 | F23: 30 | G23: 1000 | H23: 1 | I23: 0
A24: 202 | B24: 高级深渊(藏宝图） | C24: 400014;400016;400018;400019;400022 | D24: 2;98 | E24: 108027 | F24: 60 | G24: 500 | H24: 1 | I24: 0
A25: 203 | B25: 传说深渊(藏宝图） | C25: 400011;400012 | D25: 2;99 | E25: 108027 | F25: 150 | G25: 50 | H25: 1 | I25: 0
A26: 204 | B26: 普通火焰(藏宝图） | C26: 400025;400026;400029;400031 | D26: 3;97 | E26: 108027 | F26: 30 | G26: 1000 | H26: 1 | I26: 0
A27: 205 | B27: 高级火焰(藏宝图） | C27: 400027;400028;400030;400032 | D27: 3;98 | E27: 108027 | F27: 60 | G27: 500 | H27: 1 | I27: 0
A28: 206 | B28: 传说火焰(藏宝图） | C28: 400023;400024 | D28: 3;99 | E28: 108027 | F28: 150 | G28: 50 | H28: 1 | I28: 0
A29: 207 | B29: 普通寒冰(藏宝图） | C29: 400035;400036;400038;400040 | D29: 4;97 | E29: 108027 | F29: 30 | G29: 1000 | H29: 1 | I29: 0
A30: 208 | B30: 高级寒冰(藏宝图） | C30: 400037;400039;400041;400042;400043 | D30: 4;98 | E30: 108027 | F30: 60 | G30: 500 | H30: 1 | I30: 0
A31: 209 | B31: 传说寒冰(藏宝图） | C31: 400033;400034 | D31: 4;99 | E31: 108027 | F31: 150 | G31: 50 | H31: 1 | I31: 0
A32: 210 | B32: 普通雷电(藏宝图） | C32: 400046;400047;400048;400051 | D32: 5;97 | E32: 108027 | F32: 30 | G32: 1000 | H32: 1 | I32: 0
A33: 211 | B33: 高级雷电(藏宝图） | C33: 400049;400050;400052;400053 | D33: 5;98 | E33: 108027 | F33: 60 | G33: 500 | H33: 1 | I33: 0
A34: 212 | B34: 传说雷电(藏宝图） | C34: 400044;400045 | D34: 5;99 | E34: 108027 | F34: 150 | G34: 50 | H34: 1 | I34: 0

Sheet 0724删除原池子前备份
A1: ID | C1: BuffsID | D1: BuffType | E1: CostItem | F1: PoolType | G1: CostCount | H1: BuffProb | I1: MaxCount | J1: Chance
A2: int | C2: int[] | D2: int[] | E2: int | F2: int | G2: int | H2: int | I2: int | J2: int[]
A4: ID | B4: buff池名 | C4: 包括的BUFFid | D4: buff池类型： 1.课题机制 2.深渊 3.火 4.冰 5.雷 6.初始课题 7.冒险 8.debuff 97.普通 98.高级 99.传说 100.主线 200.藏宝图 | E4: 单价道具 | F4: 类型 11=肉鸽 10=藏宝图 | G4: 单价ID | H4: 权重 | I4: 最大数量 （商店里刷出时最大的级数） | J4: 额外数量概率 1000=100%
A5: 1 | B5: 普通深渊 | C5: 400013;400015;400017;400020;400021 | D5: 2;97 | E5: 108027 | F5: 11 | G5: 30 | H5: 1000 | I5: 1 | J5: 0
A6: 2 | B6: 高级深渊 | C6: 400014;400016;400018;400019;400022 | D6: 2;98 | E6: 108027 | F6: 11 | G6: 60 | H6: 500 | I6: 1 | J6: 0
A7: 3 | B7: 传说深渊 | C7: 400011;400012 | D7: 2;99 | E7: 108027 | F7: 11 | G7: 150 | H7: 50 | I7: 1 | J7: 0 | K7: =L7&";" -> 420003; | L7: 420003 | M7: 热毒果实 | N7: 火系英雄，秒伤提升{0}%
A8: 4 | B8: 普通火焰 | C8: =K7&K8&K9&K10 -> 420003;420004;420005;420008 | D8: 3;97 | E8: 108027 | F8: 11 | G8: 30 | H8: 1000 | I8: 1 | J8: 0 | K8: 420004; | L8: 420004 | M8: 滴血弱虫 | N8: 火系英雄，单次伤害量高于{0}%秒伤时，将无视敌人{1}%防御
A9: 5 | B9: 高级火焰 | C9: =K19&K20&K21&K22 -> 420006;420007;420009;420010 | D9: 3;98 | E9: 108027 | F9: 11 | G9: 60 | H9: 500 | I9: 1 | J9: 0 | K9: 420005; | L9: 420005 | M9: 猩红尾针 | N9: 火系英雄，每次造成伤害时获得{0}点能量
A10: 6 | B10: 传说火焰 | C10: =K31&K32 -> 420001;420002 | D10: 3;99 | E10: 108027 | F10: 11 | G10: 150 | H10: 50 | I10: 1 | J10: 0 | K10: =L10 -> 420008 | L10: 420008 | M10: 红色急救箱 | N10: 火系英雄，最大生命提升{0}%
A11: 7 | B11: 普通寒冰 | C11: =K11&K12&K13&K14 -> 420013;420014;420015;420018 | D11: 4;97 | E11: 108027 | F11: 11 | G11: 30 | H11: 1000 | I11: 1 | J11: 0 | K11: =L11&";" -> 420013; | L11: 420013 | M11: 冰凛果实 | N11: 冰系英雄，秒伤提升{0}%
A12: 8 | B12: 高级寒冰 | C12: =K23&K24&K25&K26 -> 420016;420017;420019;420020 | D12: 4;98 | E12: 108027 | F12: 11 | G12: 60 | H12: 500 | I12: 1 | J12: 0 | K12: 420014; | L12: 420014 | M12: 僵死弱虫 | N12: 冰系英雄，对具有护盾的敌人造成伤害提升{0}%
A13: 9 | B13: 传说寒冰 | C13: =K33&K34 -> 420011;420012 | D13: 4;99 | E13: 108027 | F13: 11 | G13: 150 | H13: 50 | I13: 1 | J13: 0 | K13: 420015; | L13: 420015 | M13: 苍蓝尾针 | N13: 冰系英雄，护盾可反弹{0}%真实伤害
A14: 10 | B14: 普通雷电 | C14: =K15&K16&K17&K18 -> 420023;420024;420025;420028 | D14: 5;97 | E14: 108027 | F14: 11 | G14: 30 | H14: 1000 | I14: 1 | J14: 0 | K14: =L14 -> 420018 | L14: 420018 | M14: 蓝色头巾 | N14: 冰系英雄，最大生命提升{0}%
A15: 11 | B15: 高级雷电 | C15: =K27&K28&K29&K30 -> 420026;420027;420029;420030 | D15: 5;98 | E15: 108027 | F15: 11 | G15: 60 | H15: 500 | I15: 1 | J15: 0 | K15: =L15&";" -> 420023; | L15: 420023 | M15: 触电果实 | N15: 电系英雄，能量获得量减少{0}%，但能量充满后普攻有{1}%概率触发【连锁闪电】
A16: 12 | B16: 传说雷电 | C16: =K35&K36 -> 420021;420022 | D16: 5;99 | E16: 108027 | F16: 11 | G16: 150 | H16: 50 | I16: 1 | J16: 0 | K16: 420024; | L16: 420024 | M16: 躁动弱虫 | N16: 电系英雄，秒伤提升{0}%
A17: 13 | B17: 普通冒险 | C17: 400064;400065;400066;400067;400068 | D17: 7;97 | E17: 108027 | F17: 11 | G17: 30 | H17: 1000 | I17: 1 | J17: 0 | K17: 420025; | L17: 420025 | M17: 闪耀尾针 | N17: 电系英雄，攻速提升{0}%
A18: 14 | B18: 高级冒险 | C18: 400061;400062;400063 | D18: 7;98 | E18: 108027 | F18: 11 | G18: 60 | H18: 500 | I18: 1 | J18: 0 | K18: =L18 -> 420028 | L18: 420028 | M18: 黄色腰带 | N18: 电系英雄，使用大招后获得{0}%的能量
A19: 15 | B19: 传说冒险 | C19: 400060 | D19: 7;99 | E19: 108027 | F19: 11 | G19: 150 | H19: 50 | I19: 1 | J19: 0 | K19: =L19&";" -> 420006; | L19: 420006 | M19: 红色能量饮料 | N19: 火系英雄，减益伤害提升{0}%
A20: 16 | B20: 诅咒 | C20: 400069;400070;400071;400072;400073;400074;400075;400076;400077 | D20: 8 | E20: 108027 | F20: 11 | G20: 30 | H20: 500 | I20: 1 | J20: 0 | K20: 420007; | L20: 420007 | M20: 红色闹钟 | N20: 火系英雄，受到的治疗量提升{0}%
A21: 17 | B21: 战斗课题初始buff | C21: 400054;400055;400056;400057 | D21: 6 | E21: -1 | F21: 11 | G21: -1 | H21: 500 | I21: 1 | J21: 0 | K21: 420009; | L21: 420009 | M21: 红色头巾 | N21: 火系英雄，每次技能对敌人只会受到一次伤害，但技能伤害提升{0}%
A22: 101 | B22: 2-4BUFF池 | C22: 400015;400032;400043;400052 | D22: 100 | E22: -1 | F22: 11 | G22: -1 | H22: 100 | I22: 1 | J22: 0 | K22: =L22 -> 420010 | L22: 420010 | M22: 红色腰带 | N22: 火系英雄，造成的所有伤害被分为两段
A23: 201 | B23: 普通深渊(藏宝图） | C23: 400013;400015;400017;400020;400021 | D23: 2;97 | E23: 108040 | F23: 10 | G23: 30 | H23: 1000 | I23: 1 | J23: 0 | K23: =L23&";" -> 420016; | L23: 420016 | M23: 蓝色能量饮料 | N23: 冰系英雄，在护盾保护下受到伤害时击退敌人{0}格
A24: 202 | B24: 高级深渊(藏宝图） | C24: 400014;400016;400018;400019;400022 | D24: 2;98 | E24: 108040 | F24: 10 | G24: 60 | H24: 500 | I24: 1 | J24: 0 | K24: 420017; | L24: 420017 | M24: 蓝色闹钟 | N24: 冰系英雄，获得的护盾量提升{0}%
A25: 203 | B25: 传说深渊(藏宝图） | C25: 400011;400012 | D25: 2;99 | E25: 108040 | F25: 10 | G25: 150 | H25: 50 | I25: 1 | J25: 0 | K25: 420019; | L25: 420019 | M25: 蓝色腰带 | N25: 冰系英雄，对受到控制效果的敌人造成伤害时，获得这个伤害量{0}%的护盾
A26: 204 | B26: 普通火焰(藏宝图） | C26: =C8 -> 420003;420004;420005;420008 | D26: 3;97 | E26: 108040 | F26: 10 | G26: 30 | H26: 1000 | I26: 1 | J26: 0 | K26: =L26 -> 420020 | L26: 420020 | M26: 蓝色急救箱 | N26: 冰系英雄，使用技能时消耗自身{0}%护盾恢复等量生命
A27: 205 | B27: 高级火焰(藏宝图） | C27: 420006;420007;420009;420010 | D27: 3;98 | E27: 108040 | F27: 10 | G27: 60 | H27: 500 | I27: 1 | J27: 0 | K27: =L27&";" -> 420026; | L27: 420026 | M27: 黄色能量饮料 | N27: 电系英雄，使用小技能时额外获得{0}层【感电】
A28: 206 | B28: 传说火焰(藏宝图） | C28: 420001;420002 | D28: 3;99 | E28: 108040 | F28: 10 | G28: 150 | H28: 50 | I28: 1 | J28: 0 | K28: 420027; | L28: 420027 | M28: 黄色闹钟 | N28: 电系英雄，受到的治疗量提升{0}%
A29: 207 | B29: 普通寒冰(藏宝图） | C29: 420013;420014;420015;420018 | D29: 4;97 | E29: 108040 | F29: 10 | G29: 30 | H29: 1000 | I29: 1 | J29: 0 | K29: 420029; | L29: 420029 | M29: 黄色急救箱 | N29: 电系英雄，技能吸血{0}%
A30: 208 | B30: 高级寒冰(藏宝图） | C30: 420016;420017;420019;420020 | D30: 4;98 | E30: 108040 | F30: 10 | G30: 60 | H30: 500 | I30: 1 | J30: 0 | K30: =L30 -> 420030 | L30: 420030 | M30: 黄色头巾 | N30: 电系英雄，普攻的暴击率提升{0}%
A31: 209 | B31: 传说寒冰(藏宝图） | C31: 420011;420012 | D31: 4;99 | E31: 108040 | F31: 10 | G31: 150 | H31: 50 | I31: 1 | J31: 0 | K31: =L31&";" -> 420001; | L31: 420001 | M31: 火龙血 | N31: 火系英雄，普攻有{0}%概率为敌人施加【爆裂】
A32: 210 | B32: 普通雷电(藏宝图） | C32: 420023;420024;420025;420028 | D32: 5;97 | E32: 108040 | F32: 10 | G32: 30 | H32: 1000 | I32: 1 | J32: 0 | K32: 420002 | L32: 420002 | M32: 地狱喷火枪 | N32: 火系英雄，普攻有{0}%概率为敌人施加【焚烧】
A33: 211 | B33: 高级雷电(藏宝图） | C33: 420026;420027;420029;420030 | D33: 5;98 | E33: 108040 | F33: 10 | G33: 60 | H33: 500 | I33: 1 | J33: 0 | K33: 420011; | L33: 420011 | M33: 冰之镜 | N33: 冰系英雄，大招技能对敌人造成伤害时可【冻结】敌人，并将敌人余下的{0}%生命值转变为护盾值（每个敌人可触发一次）
A34: 212 | B34: 传说雷电(藏宝图） | C34: 420021;420022 | D34: 5;99 | E34: 108040 | F34: 10 | G34: 150 | H34: 50 | I34: 1 | J34: 0 | K34: 420012 | L34: 420012 | M34: 水晶匕首 | N34: 冰系英雄，护盾受到伤害时，有{0}%概率散落{1}枚【冰甲碎片】攻击目标敌人
A35: 301 | B35: 藏宝图警戒度1怪物加强 | C35: 300002 | D35: 7 | E35: 108040 | F35: 10 | G35: 150 | H35: 50 | I35: 1 | J35: 0 | K35: 420021; | L35: 420021 | M35: 电击棒 | N35: 电系英雄，能量获得量减少{0}%，但能量充满后普攻有{1}%概率触发【连锁闪电】
A36: 302 | B36: 藏宝图警戒度2怪物加强 | C36: 300003 | D36: 7 | E36: 108040 | F36: 10 | G36: 150 | H36: 50 | I36: 1 | J36: 0 | K36: =L36 -> 420022 | L36: 420022 | M36: 能量饮料 | N36: 电系英雄，攻速减少{0}%，根据技能伤害提升{1}%*拥有的【感电】层数
A37: 303 | B37: 藏宝图警戒度3怪物加强 | C37: 300004 | D37: 7 | E37: 108040 | F37: 10 | G37: 150 | H37: 50 | I37: 1 | J37: 0
A38: 311 | B38: 藏宝图-主线1星-默认玩法-怪物额外掉落-森林 | C38: 302001 | D38: 7 | E38: 108040 | F38: 10 | G38: 150 | H38: 50 | I38: 1 | J38: 0
A39: 312 | B39: 藏宝图-主线1星-默认玩法-怪物额外掉落-矿山 | C39: 302002 | D39: 7 | E39: 108040 | F39: 10 | G39: 150 | H39: 50 | I39: 1 | J39: 0
A40: 313 | B40: 藏宝图-主线1星-默认玩法-怪物额外掉落-地下 | C40: 302003 | D40: 7 | E40: 108040 | F40: 10 | G40: 150 | H40: 50 | I40: 1 | J40: 0
A41: 314 | B41: 藏宝图-日常1星-默认玩法-怪物额外掉落-森林 | C41: 302004 | D41: 7 | E41: 108040 | F41: 10 | G41: 150 | H41: 50 | I41: 1 | J41: 0
A42: 315 | B42: 藏宝图-日常1星-默认玩法-怪物额外掉落-矿山 | C42: 302005 | D42: 7 | E42: 108040 | F42: 10 | G42: 150 | H42: 50 | I42: 1 | J42: 0
A43: 316 | B43: 藏宝图-日常1星-默认玩法-怪物额外掉落-地下 | C43: 302006 | D43: 7 | E43: 108040 | F43: 10 | G43: 150 | H43: 50 | I43: 1 | J43: 0
A44: 317 | B44: 藏宝图-日常2星-默认玩法-怪物额外掉落-森林 | C44: 302007 | D44: 7 | E44: 108040 | F44: 10 | G44: 150 | H44: 50 | I44: 1 | J44: 0
A45: 318 | B45: 藏宝图-日常2星-默认玩法-怪物额外掉落-矿山 | C45: 302008 | D45: 7 | E45: 108040 | F45: 10 | G45: 150 | H45: 50 | I45: 1 | J45: 0
A46: 319 | B46: 藏宝图-主线2星-默认玩法-怪物额外掉落-森林 | C46: 302009 | D46: 7 | E46: 108040 | F46: 10 | G46: 150 | H46: 50 | I46: 1 | J46: 0
A47: 320 | B47: 藏宝图-日常2星-默认玩法-怪物额外掉落-地下 | C47: 302010 | D47: 7 | E47: 108040 | F47: 10 | G47: 150 | H47: 50 | I47: 1 | J47: 0
A48: 321 | B48: 藏宝图BUFF池，普通火 | C48: 420003;420004;420005;420008 | D48: 3;97;200 | E48: 108040 | F48: 10 | G48: 30 | H48: 1000 | I48: 1 | J48: 0
A49: 322 | B49: 藏宝图BUFF池，高级火 | C49: 420006;420007;420009;420010 | D49: 3;98;200 | E49: 108040 | F49: 10 | G49: 60 | H49: 500 | I49: 1 | J49: 0
A50: 323 | B50: 藏宝图BUFF池，普通水 | C50: 420013;420014;420015;420018 | D50: 4;97;200 | E50: 108040 | F50: 10 | G50: 30 | H50: 1000 | I50: 1 | J50: 0
A51: 324 | B51: 藏宝图BUFF池，高级水 | C51: 420016;420017;420019;420020 | D51: 4;98;200 | E51: 108040 | F51: 10 | G51: 60 | H51: 500 | I51: 1 | J51: 0
A52: 325 | B52: 藏宝图BUFF池，普通电 | C52: 420023;420024;420025;420028 | D52: 5;97;200 | E52: 108040 | F52: 10 | G52: 30 | H52: 1000 | I52: 1 | J52: 0
A53: 326 | B53: 藏宝图BUFF池，高级电 | C53: 420026;420027;420029;420030 | D53: 5;98;200 | E53: 108040 | F53: 10 | G53: 60 | H53: 500 | I53: 1 | J53: 0
